{"text_format":"1","workbook":"xlsx","n_sheets":5,"sheets":["Guide & Calcul des primes","Procédure + détails avec audit","Procédure + détails sans audit","Informations supplémentaires","Building Blocks (BB)"],"not_rendered":{"charts":0,"images":11,"macros":1,"external_links":0,"defined_names":19,"comments":0,"pivot_tables":0},"unopened":[],"bounds":{"document_bytes":16777216,"sheet_cells":100000,"rows_first":2000,"rows_last":500,"rows_between":2000,"halvings":0,"cell_chars":16384,"cell_head_chars":4096},"cells_cut":0,"cells_raw":0,"read":"whole","date_system":"1900"}

{"sheet":"Guide & Calcul des primes","index":0,"n_rows":92,"n_cols":12,"rows_kept":92,"cut":false,"hidden":false,"merged":[[4,2,4,7],[20,4,20,11],[20,2,20,3],[2,1,2,8],[5,6,5,7],[6,6,6,7],[7,6,7,7],[8,6,8,7],[5,2,5,5],[18,1,19,1],[18,4,19,5],[18,6,19,11],[18,2,19,3],[6,2,6,5],[7,2,7,5],[8,2,8,5],[9,2,9,5],[10,2,10,5],[14,6,16,11],[16,4,16,5],[9,6,9,7],[14,4,14,5],[12,2,12,5],[14,2,14,3],[16,2,16,3]]}
[]
[]
[null,"Outil d'estimation rapide des primes à la rénovation de la région wallonne"]
[]
[null,1,"Déterminer le régime des revenus du ménage afin d'obtenir l'indice de majoration des primes du demandeur :"]
[null,null,"Somme des revenus annuels imposables globaux du ménage   →",null,null,null,{"$f":"40000+35000","v":75000}]
[null,null,"Nombre d'enfants à charge  (existant, à naître, orphelin ou en hébergement égalitaire)   →",null,null,null,2]
[null,null,"Nombre de personnes présentant un handicap et faisant partie du ménage   →",null,null,null,0]
[null,null,"Nombre de parents-cohabitants de plus de 60 ans   →",null,null,null,0]
[null,null,"Revenu de référence du ménage   →",null,null,null,{"$f":"G6-G7*5000-G8*5000-G9*5000","v":65000}]
[null,null,"Régime de majoration des primes du demandeur   →",null,null,null,{"$f":"IF(G10<='Informations supplémentaires'!$E$9,'Informations supplémentaires'!C9,IF(G10<='Informations supplémentaires'!E10,'Informations supplémentaires'!C10,IF(G10<='Informations supplémentaires'!E11,'Informations supplémentaires'!C11,IF(G10<='Informations supplémentaires'!E12,'Informations supplémentaires'!C12,IF(G10>'Informations supplémentaires'!E12,'Informations supplémentaires'!C13,\"erreur\")))))","v":"R4"},{"$f":"VLOOKUP($G$11,'Informations supplémentaires'!$C$9:$F$13,4)","v":2}]
[]
[null,2,"Indiquer les quantités spécifiques à votre projet de rénovation dans le tableau ci-dessous"]
[]
[null,3,"Allez-vous faire appel à un auditeur Logement ?                            →  Auditeur ?                ",null,"oui",null,{"$f":"IF(AND(E15=\"oui\",E17=\"le demandeur\"),\"Attention :   \nle demandeur ne peut pas réaliser les travaux lui-même pour obtenir les primes Habitation, \nseules les primes toitures et les primes pour petits travaux lui seront accessibles !\",IF(E15=\"oui\",\"Attention :\nLe passage préalable d'un AUDITEUR LOGEMENT est nécessaire pour l'obtention de prime(s) Habitation\",IF(E15=\"non\",IF((H30+H31+H32+H37+H38+H39+H45+H80+H82+H83+H84+H85+H86+H87+H88)>0,\"Attention :\nLe passage préalable d'un ESTIMATEUR DU SPW est nécessaire pour l'obtention d'une ou plusieurs primes activées ci-dessous\",\"\"))))","v":"Attention :\nLe passage préalable d'un AUDITEUR LOGEMENT est nécessaire pour l'obtention de prime(s) Habitation"}]
[]
[null,4,"Qui va réaliser les travaux du projet ?                                                 →  Choisir :                ",null,"un entrepreneur"]
[]
[null,5,"Constater le total des primes estimées pour votre projet             →   Total :",null,{"$f":"Tableau152[[#Totals],[Total \nprimes]]","v":0},null,"Attention, ce montant est le total maximum théoriquement éligible à votre demande prime, selon vos revenus de référence.\nMais le montant de vos primes sera dans tous les cas plafonné à 90% des factures relatives à chaque travail éligible.\n     → mon devis pour 100m² d'isolation biosourcée de toiture est de 9.200€ TTC (uniquement isolation et pare-vapeur).\n          Le calculateur m'informe que j'ai droit à 13.000€ de prime mais je ne recevrai que :  [ 90% * 9.200€ ]  =  8.280€ !"]
[]
[null,6,"N'oubliez pas de vérifier si votre commune propose également des primes !",null,{"$f":"IF($J$33<>\"\",\"→ Vous seriez également éligibles à une réduction fiscale de maximum 3.740,00€ pour l'isolation de votre toiture ! \n        voir # 01.06 (dans tableau ci-dessous)\",\"\")","v":"→ Vous seriez également éligibles à une réduction fiscale de maximum 3.740,00€ pour l'isolation de votre toiture ! \n        voir # 01.06 (dans tableau ci-dessous)"}]
[null,null,null,null,null,null,null,"Insérer \nvos données",null,"Constater les totaux"]
[null,null,null,null,null,null,null,"↓",null,"↓"]
[null,"#","travaux","Montant de base primes avec audit travaux entrepreneur","Montant de base primes sans audit \ntravaux par entrepreneur","Montant de base primes sans audit \ntravaux par demandeur","Montant adapté selon régime et paramètres","Quantités","unité","Total \nprimes","Conditions d'obtention des  primes","Remarque"]
[null,"00","AUDIT",null,null,null,{"$f":"IF((Tableau152[[#This Row],[Montant de base primes avec audit travaux entrepreneur]]+Tableau152[[#This Row],[Montant de base primes sans audit \ntravaux par entrepreneur]]+Tableau152[[#This Row],[Montant de base primes sans audit \ntravaux par demandeur]])=0,\"\",IF(AND($E$15=\"oui\",$E$17=\"un entrepreneur\"),Tableau152[[#This Row],[Montant de base primes avec audit travaux entrepreneur]]*$H$11,IF(AND($E$15=\"non\",$E$17=\"un entrepreneur\"),Tableau152[[#This Row],[Montant de base primes sans audit \ntravaux par entrepreneur]]*$H$11,IF(AND($E$15=\"non\",$E$17=\"le demandeur\"),Tableau152[[#This Row],[Montant de base primes sans audit \ntravaux par demandeur]]*$H$11,IF(AND($E$15=\"oui\",$E$17=\"le demandeur\"),Tableau152[[#This Row],[Montant de base primes sans audit \ntravaux par demandeur]]*$H$11,\"erreur\")))))","v":""},{"$f":"IF(Tableau152[[#This Row],[unité]]=\"\",\"\",0)","v":""},null,{"$f":"SUM(J26)","v":0}]
[null,"00.01","Audit logement",190,null,null,{"$f":"IF((Tableau152[[#This Row],[Montant de base primes avec audit travaux entrepreneur]]+Tableau152[[#This Row],[Montant de base primes sans audit \ntravaux par entrepreneur]]+Tableau152[[#This Row],[Montant de base primes sans audit \ntravaux par demandeur]])=0,\"\",IF(AND($E$15=\"oui\",$E$17=\"un entrepreneur\"),Tableau152[[#This Row],[Montant de base primes avec audit travaux entrepreneur]]*$H$11,IF(AND($E$15=\"non\",$E$17=\"un entrepreneur\"),Tableau152[[#This Row],[Montant de base primes sans audit \ntravaux par entrepreneur]]*$H$11,IF(AND($E$15=\"non\",$E$17=\"le demandeur\"),Tableau152[[#This Row],[Montant de base primes sans audit \ntravaux par demandeur]]*$H$11,IF(AND($E$15=\"oui\",$E$17=\"le demandeur\"),Tableau152[[#This Row],[Montant de base primes sans audit \ntravaux par demandeur]]*$H$11,\"erreur\")))))","v":380},{"$f":"IF(Tableau152[[#This Row],[unité]]=\"\",\"\",0)","v":0},"forfait",{"$f":"IF(Tableau152[[#This Row],[Quantités]]=0,0,IF(Tableau152[[#This Row],[Quantités]]=\"\",\"\",IF(Tableau152[[#This Row],[unité]]=\"forfait\",1*Tableau152[[#This Row],[Montant adapté selon régime et paramètres]],\nROUND(Tableau152[[#This Row],[Quantités]]*Tableau152[[#This Row],[Montant adapté selon régime et paramètres]],2))))","v":0}]
[null,"01","TOITURE",null,null,null,{"$f":"IF((Tableau152[[#This Row],[Montant de base primes avec audit travaux entrepreneur]]+Tableau152[[#This Row],[Montant de base primes sans audit \ntravaux par entrepreneur]]+Tableau152[[#This Row],[Montant de base primes sans audit \ntravaux par demandeur]])=0,\"\",IF(AND($E$15=\"oui\",$E$17=\"un entrepreneur\"),Tableau152[[#This Row],[Montant de base primes avec audit travaux entrepreneur]]*$H$11,IF(AND($E$15=\"non\",$E$17=\"un entrepreneur\"),Tableau152[[#This Row],[Montant de base primes sans audit \ntravaux par entrepreneur]]*$H$11,IF(AND($E$15=\"non\",$E$17=\"le demandeur\"),Tableau152[[#This Row],[Montant de base primes sans audit \ntravaux par demandeur]]*$H$11,IF(AND($E$15=\"oui\",$E$17=\"le demandeur\"),Tableau152[[#This Row],[Montant de base primes sans audit \ntravaux par demandeur]]*$H$11,\"erreur\")))))","v":""},{"$f":"IF(Tableau152[[#This Row],[unité]]=\"\",\"\",0)","v":""},null,{"$f":"SUM(J28:J32)","v":0}]
[null,"01.01","Isolation thermique toiture",50,30,9,{"$f":"IF((Tableau152[[#This Row],[Montant de base primes avec audit travaux entrepreneur]]+Tableau152[[#This Row],[Montant de base primes sans audit \ntravaux par entrepreneur]]+Tableau152[[#This Row],[Montant de base primes sans audit \ntravaux par demandeur]])=0,\"\",IF(AND($E$15=\"oui\",$E$17=\"un entrepreneur\"),Tableau152[[#This Row],[Montant de base primes avec audit travaux entrepreneur]]*$H$11,IF(AND($E$15=\"non\",$E$17=\"un entrepreneur\"),Tableau152[[#This Row],[Montant de base primes sans audit \ntravaux par entrepreneur]]*$H$11,IF(AND($E$15=\"non\",$E$17=\"le demandeur\"),Tableau152[[#This Row],[Montant de base primes sans audit \ntravaux par demandeur]]*$H$11,IF(AND($E$15=\"oui\",$E$17=\"le demandeur\"),Tableau152[[#This Row],[Montant de base primes sans audit \ntravaux par demandeur]]*$H$11,\"erreur\")))))","v":100},{"$f":"IF(Tableau152[[#This Row],[unité]]=\"\",\"\",0)","v":0},"m² toiture isolée",{"$f":"IF(Tableau152[[#This Row],[Quantités]]=0,0,IF(Tableau152[[#This Row],[Quantités]]=\"\",\"\",IF(Tableau152[[#This Row],[unité]]=\"forfait\",1*Tableau152[[#This Row],[Montant adapté selon régime et paramètres]],\nROUND(Tableau152[[#This Row],[Quantités]]*Tableau152[[#This Row],[Montant adapté selon régime et paramètres]],2))))","v":0},"R ≥ 5,00 m²K/W\nVoir 6. dans circulaire des travaux pris en compte"]
[null,"01.02","Isolation thermique toiture avec matériau biosourcé",65,40,13,{"$f":"IF((Tableau152[[#This Row],[Montant de base primes avec audit travaux entrepreneur]]+Tableau152[[#This Row],[Montant de base primes sans audit \ntravaux par entrepreneur]]+Tableau152[[#This Row],[Montant de base primes sans audit \ntravaux par demandeur]])=0,\"\",IF(AND($E$15=\"oui\",$E$17=\"un entrepreneur\"),Tableau152[[#This Row],[Montant de base primes avec audit travaux entrepreneur]]*$H$11,IF(AND($E$15=\"non\",$E$17=\"un entrepreneur\"),Tableau152[[#This Row],[Montant de base primes sans audit \ntravaux par entrepreneur]]*$H$11,IF(AND($E$15=\"non\",$E$17=\"le demandeur\"),Tableau152[[#This Row],[Montant de base primes sans audit \ntravaux par demandeur]]*$H$11,IF(AND($E$15=\"oui\",$E$17=\"le demandeur\"),Tableau152[[#This Row],[Montant de base primes sans audit \ntravaux par demandeur]]*$H$11,\"erreur\")))))","v":130},{"$f":"IF(Tableau152[[#This Row],[unité]]=\"\",\"\",0)","v":0},"m² toiture isolée",{"$f":"IF(Tableau152[[#This Row],[Quantités]]=0,0,IF(Tableau152[[#This Row],[Quantités]]=\"\",\"\",IF(Tableau152[[#This Row],[unité]]=\"forfait\",1*Tableau152[[#This Row],[Montant adapté selon régime et paramètres]],\nROUND(Tableau152[[#This Row],[Quantités]]*Tableau152[[#This Row],[Montant adapté selon régime et paramètres]],2))))","v":0},"R ≥ 5,00 m²K/W\nisolant dont la teneur biosourcée du produit est ≥ 70 % + vérification liste des matériaux éligibles (norme prEN 167828-2:2018)\nVoir 6. dans circulaire des travaux pris en compte","Voir liste des isolants biosourcés éligibles aux primes\n(lien dans les sources des onglets relatifs aux procédures et détails)"]
[null,"01.03","Remplacement de la couverture de toiture",10,10,10,{"$f":"IF((Tableau152[[#This Row],[Montant de base primes avec audit travaux entrepreneur]]+Tableau152[[#This Row],[Montant de base primes sans audit \ntravaux par entrepreneur]]+Tableau152[[#This Row],[Montant de base primes sans audit \ntravaux par demandeur]])=0,\"\",IF(AND($E$15=\"oui\",$E$17=\"un entrepreneur\"),Tableau152[[#This Row],[Montant de base primes avec audit travaux entrepreneur]]*$H$11,IF(AND($E$15=\"non\",$E$17=\"un entrepreneur\"),Tableau152[[#This Row],[Montant de base primes sans audit \ntravaux par entrepreneur]]*$H$11,IF(AND($E$15=\"non\",$E$17=\"le demandeur\"),Tableau152[[#This Row],[Montant de base primes sans audit \ntravaux par demandeur]]*$H$11,IF(AND($E$15=\"oui\",$E$17=\"le demandeur\"),Tableau152[[#This Row],[Montant de base primes sans audit \ntravaux par demandeur]]*$H$11,\"erreur\")))))","v":20},{"$f":"IF(Tableau152[[#This Row],[unité]]=\"\",\"\",0)","v":0},"m² toiture",{"$f":"IF(Tableau152[[#This Row],[Quantités]]=0,0,IF(Tableau152[[#This Row],[Quantités]]=\"\",\"\",IF(Tableau152[[#This Row],[unité]]=\"forfait\",1*Tableau152[[#This Row],[Montant adapté selon régime et paramètres]],\nROUND(Tableau152[[#This Row],[Quantités]]*Tableau152[[#This Row],[Montant adapté selon régime et paramètres]],2))))","v":0},"Voir 3.A. dans circulaire des travaux pris en compte","l'entrepreneur doit disposer de l'accès à la profession pour les activités de type « Toiture et étanchéité » ou dans le cas des couvertures métalliques, de l'accès à la profession pour les activités de type « Activités de construction métallique »"]
[null,"01.04","Appropriation de la charpente de toiture",250,250,250,{"$f":"IF((Tableau152[[#This Row],[Montant de base primes avec audit travaux entrepreneur]]+Tableau152[[#This Row],[Montant de base primes sans audit \ntravaux par entrepreneur]]+Tableau152[[#This Row],[Montant de base primes sans audit \ntravaux par demandeur]])=0,\"\",IF(AND($E$15=\"oui\",$E$17=\"un entrepreneur\"),Tableau152[[#This Row],[Montant de base primes avec audit travaux entrepreneur]]*$H$11,IF(AND($E$15=\"non\",$E$17=\"un entrepreneur\"),Tableau152[[#This Row],[Montant de base primes sans audit \ntravaux par entrepreneur]]*$H$11,IF(AND($E$15=\"non\",$E$17=\"le demandeur\"),Tableau152[[#This Row],[Montant de base primes sans audit \ntravaux par demandeur]]*$H$11,IF(AND($E$15=\"oui\",$E$17=\"le demandeur\"),Tableau152[[#This Row],[Montant de base primes sans audit \ntravaux par demandeur]]*$H$11,\"erreur\")))))","v":500},{"$f":"IF(Tableau152[[#This Row],[unité]]=\"\",\"\",0)","v":0},"forfait",{"$f":"IF(Tableau152[[#This Row],[Quantités]]=0,0,IF(Tableau152[[#This Row],[Quantités]]=\"\",\"\",IF(Tableau152[[#This Row],[unité]]=\"forfait\",1*Tableau152[[#This Row],[Montant adapté selon régime et paramètres]],\nROUND(Tableau152[[#This Row],[Quantités]]*Tableau152[[#This Row],[Montant adapté selon régime et paramètres]],2))))","v":0},"Voir 3.B. dans circulaire des travaux pris en compte","l'entrepreneur doit disposer de l'accès à la profession pour les activités de type « Toiture et étanchéité » ou dans le cas des couvertures métalliques, de l'accès à la profession pour les activités de type « Activités de construction métallique »"]
[null,"01.05","Remplacement de dispositifs d'eaux pluviales de toiture",100,100,100,{"$f":"IF((Tableau152[[#This Row],[Montant de base primes avec audit travaux entrepreneur]]+Tableau152[[#This Row],[Montant de base primes sans audit \ntravaux par entrepreneur]]+Tableau152[[#This Row],[Montant de base primes sans audit \ntravaux par demandeur]])=0,\"\",IF(AND($E$15=\"oui\",$E$17=\"un entrepreneur\"),Tableau152[[#This Row],[Montant de base primes avec audit travaux entrepreneur]]*$H$11,IF(AND($E$15=\"non\",$E$17=\"un entrepreneur\"),Tableau152[[#This Row],[Montant de base primes sans audit \ntravaux par entrepreneur]]*$H$11,IF(AND($E$15=\"non\",$E$17=\"le demandeur\"),Tableau152[[#This Row],[Montant de base primes sans audit \ntravaux par demandeur]]*$H$11,IF(AND($E$15=\"oui\",$E$17=\"le demandeur\"),Tableau152[[#This Row],[Montant de base primes sans audit \ntravaux par demandeur]]*$H$11,\"erreur\")))))","v":200},{"$f":"IF(Tableau152[[#This Row],[unité]]=\"\",\"\",0)","v":0},"forfait",{"$f":"IF(Tableau152[[#This Row],[Quantités]]=0,0,IF(Tableau152[[#This Row],[Quantités]]=\"\",\"\",IF(Tableau152[[#This Row],[unité]]=\"forfait\",1*Tableau152[[#This Row],[Montant adapté selon régime et paramètres]],\nROUND(Tableau152[[#This Row],[Quantités]]*Tableau152[[#This Row],[Montant adapté selon régime et paramètres]],2))))","v":0},"Voir 3.C. dans circulaire des travaux pris en compte","l'entrepreneur doit disposer de l'accès à la profession pour les activités de type « Toiture et étanchéité » ou dans le cas des couvertures métalliques, de l'accès à la profession pour les activités de type « Activités de construction métallique »"]
[null,"01.06","Isolation thermique de toiture - réduction fiscale",null,null,null,{"$f":"IF((Tableau152[[#This Row],[Montant de base primes avec audit travaux entrepreneur]]+Tableau152[[#This Row],[Montant de base primes sans audit \ntravaux par entrepreneur]]+Tableau152[[#This Row],[Montant de base primes sans audit \ntravaux par demandeur]])=0,\"\",IF(AND($E$15=\"oui\",$E$17=\"un entrepreneur\"),Tableau152[[#This Row],[Montant de base primes avec audit travaux entrepreneur]]*$H$11,IF(AND($E$15=\"non\",$E$17=\"un entrepreneur\"),Tableau152[[#This Row],[Montant de base primes sans audit \ntravaux par entrepreneur]]*$H$11,IF(AND($E$15=\"non\",$E$17=\"le demandeur\"),Tableau152[[#This Row],[Montant de base primes sans audit \ntravaux par demandeur]]*$H$11,IF(AND($E$15=\"oui\",$E$17=\"le demandeur\"),Tableau152[[#This Row],[Montant de base primes sans audit \ntravaux par demandeur]]*$H$11,\"erreur\")))))","v":""},{"$f":"IF(Tableau152[[#This Row],[unité]]=\"\",\"\",0)","v":""},null,{"$f":"IF($J$28=\"\",IF($J$29=\"\",\"\",IF($J$29>3740,3740,$J$29)),IF($J$28>3740,3740,$J$28))","v":0},"lien vers \"SPF Finances\"","La réduction s'élève à 30 % des factures TTC sur les travaux liés réalisés.\nPour l'exercice d'imposition 2023 (factures de l’année 2022), cette réduction s'élève à maximum 3.420 euros par habitation (indépendent du moment de la réalisation des travaux).\nPour l'exercice d'imposition 2024 (factures de l’année 2023), cette réduction s'élève à maximum 3.740 euros).\nDroit à la réduction d'impôt pour chacune des habitations dont vous êtes propriétaires.\nIl faut que la première occupation de l’habitation précède d’au moins 5 ans le début des travaux concernés par la réduction."]
[null,"02","MURS ET FACADES",null,null,null,{"$f":"IF((Tableau152[[#This Row],[Montant de base primes avec audit travaux entrepreneur]]+Tableau152[[#This Row],[Montant de base primes sans audit \ntravaux par entrepreneur]]+Tableau152[[#This Row],[Montant de base primes sans audit \ntravaux par demandeur]])=0,\"\",IF(AND($E$15=\"oui\",$E$17=\"un entrepreneur\"),Tableau152[[#This Row],[Montant de base primes avec audit travaux entrepreneur]]*$H$11,IF(AND($E$15=\"non\",$E$17=\"un entrepreneur\"),Tableau152[[#This Row],[Montant de base primes sans audit \ntravaux par entrepreneur]]*$H$11,IF(AND($E$15=\"non\",$E$17=\"le demandeur\"),Tableau152[[#This Row],[Montant de base primes sans audit \ntravaux par demandeur]]*$H$11,IF(AND($E$15=\"oui\",$E$17=\"le demandeur\"),Tableau152[[#This Row],[Montant de base primes sans audit \ntravaux par demandeur]]*$H$11,\"erreur\")))))","v":""},{"$f":"IF(Tableau152[[#This Row],[unité]]=\"\",\"\",0)","v":""},null,{"$f":"SUM(J35:J39)","v":0}]
[null,"02.01","Isolation thermique de murs",22,null,null,{"$f":"IF((Tableau152[[#This Row],[Montant de base primes avec audit travaux entrepreneur]]+Tableau152[[#This Row],[Montant de base primes sans audit \ntravaux par entrepreneur]]+Tableau152[[#This Row],[Montant de base primes sans audit \ntravaux par demandeur]])=0,\"\",IF(AND($E$15=\"oui\",$E$17=\"un entrepreneur\"),Tableau152[[#This Row],[Montant de base primes avec audit travaux entrepreneur]]*$H$11,IF(AND($E$15=\"non\",$E$17=\"un entrepreneur\"),Tableau152[[#This Row],[Montant de base primes sans audit \ntravaux par entrepreneur]]*$H$11,IF(AND($E$15=\"non\",$E$17=\"le demandeur\"),Tableau152[[#This Row],[Montant de base primes sans audit \ntravaux par demandeur]]*$H$11,IF(AND($E$15=\"oui\",$E$17=\"le demandeur\"),Tableau152[[#This Row],[Montant de base primes sans audit \ntravaux par demandeur]]*$H$11,\"erreur\")))))","v":44},{"$f":"IF(Tableau152[[#This Row],[unité]]=\"\",\"\",0)","v":0},"m² mur isolé",{"$f":"IF(Tableau152[[#This Row],[Quantités]]=0,0,IF(Tableau152[[#This Row],[Quantités]]=\"\",\"\",IF(Tableau152[[#This Row],[unité]]=\"forfait\",1*Tableau152[[#This Row],[Montant adapté selon régime et paramètres]],\nIF($E$15=\"non\",IF(ROUND(Tableau152[[#This Row],[Quantités]]*Tableau152[[#This Row],[Montant adapté selon régime et paramètres]],2)>6000,6000,ROUND(Tableau152[[#This Row],[Quantités]]*Tableau152[[#This Row],[Montant adapté selon régime et paramètres]],2)),\nIF($E$15=\"oui\",ROUND(Tableau152[[#This Row],[Quantités]]*Tableau152[[#This Row],[Montant adapté selon régime et paramètres]],2),\"erreur\")))))","v":0},"R ≥ 4,00 m²K/W \n(R ≥ 3,50 m²K/W jusqu’au 30 juin 2024)\nVoir 7. dans circulaire des travaux pris en compte"]
[null,"02.02","Isolation avec matériau biosourcé de murs",30,null,null,{"$f":"IF((Tableau152[[#This Row],[Montant de base primes avec audit travaux entrepreneur]]+Tableau152[[#This Row],[Montant de base primes sans audit \ntravaux par entrepreneur]]+Tableau152[[#This Row],[Montant de base primes sans audit \ntravaux par demandeur]])=0,\"\",IF(AND($E$15=\"oui\",$E$17=\"un entrepreneur\"),Tableau152[[#This Row],[Montant de base primes avec audit travaux entrepreneur]]*$H$11,IF(AND($E$15=\"non\",$E$17=\"un entrepreneur\"),Tableau152[[#This Row],[Montant de base primes sans audit \ntravaux par entrepreneur]]*$H$11,IF(AND($E$15=\"non\",$E$17=\"le demandeur\"),Tableau152[[#This Row],[Montant de base primes sans audit \ntravaux par demandeur]]*$H$11,IF(AND($E$15=\"oui\",$E$17=\"le demandeur\"),Tableau152[[#This Row],[Montant de base primes sans audit \ntravaux par demandeur]]*$H$11,\"erreur\")))))","v":60},{"$f":"IF(Tableau152[[#This Row],[unité]]=\"\",\"\",0)","v":0},"m² mur isolé",{"$f":"IF(Tableau152[[#This Row],[Quantités]]=0,0,IF(Tableau152[[#This Row],[Quantités]]=\"\",\"\",IF(Tableau152[[#This Row],[unité]]=\"forfait\",1*Tableau152[[#This Row],[Montant adapté selon régime et paramètres]],\nIF($E$15=\"non\",IF(ROUND(Tableau152[[#This Row],[Quantités]]*Tableau152[[#This Row],[Montant adapté selon régime et paramètres]],2)>6000,6000,ROUND(Tableau152[[#This Row],[Quantités]]*Tableau152[[#This Row],[Montant adapté selon régime et paramètres]],2)),\nIF($E$15=\"oui\",ROUND(Tableau152[[#This Row],[Quantités]]*Tableau152[[#This Row],[Montant adapté selon régime et paramètres]],2),\"erreur\")))))","v":0},"R ≥ 4,00 m²K/W \n(R ≥ 3,50 m²K/W jusqu’au 30 juin 2024)\nisolant dont la teneur biosourcée du produit est ≥ 70 % + vérification liste des matériaux éligibles (norme prEN 167828-2:2018)\nVoir 7. dans circulaire des travaux pris en compte","Voir liste des isolants biosourcés éligibles aux primes\n(lien dans les sources des onglets relatifs aux procédures et détails)"]
[null,"02.03","Assèchement de murs (extérieurs) - par infiltration",6,350,350,{"$f":"IF((Tableau152[[#This Row],[Montant de base primes avec audit travaux entrepreneur]]+Tableau152[[#This Row],[Montant de base primes sans audit \ntravaux par entrepreneur]]+Tableau152[[#This Row],[Montant de base primes sans audit \ntravaux par demandeur]])=0,\"\",IF(AND($E$15=\"oui\",$E$17=\"un entrepreneur\"),Tableau152[[#This Row],[Montant de base primes avec audit travaux entrepreneur]]*$H$11,IF(AND($E$15=\"non\",$E$17=\"un entrepreneur\"),Tableau152[[#This Row],[Montant de base primes sans audit \ntravaux par entrepreneur]]*$H$11,IF(AND($E$15=\"non\",$E$17=\"le demandeur\"),Tableau152[[#This Row],[Montant de base primes sans audit \ntravaux par demandeur]]*$H$11,IF(AND($E$15=\"oui\",$E$17=\"le demandeur\"),Tableau152[[#This Row],[Montant de base primes sans audit \ntravaux par demandeur]]*$H$11,\"erreur\")))))","v":12},{"$f":"IF(Tableau152[[#This Row],[unité]]=\"\",\"\",0)","v":0},{"$f":"IF($E$15=\"oui\",\"m² mur asseché\",\"forfait\")","v":"m² mur asseché"},{"$f":"IF(Tableau152[[#This Row],[Quantités]]=0,0,IF(Tableau152[[#This Row],[Quantités]]=\"\",\"\",IF(Tableau152[[#This Row],[unité]]=\"forfait\",1*Tableau152[[#This Row],[Montant adapté selon régime et paramètres]],\nIF($E$15=\"non\",IF(ROUND(Tableau152[[#This Row],[Quantités]]*Tableau152[[#This Row],[Montant adapté selon régime et paramètres]],2)>6000,6000,ROUND(Tableau152[[#This Row],[Quantités]]*Tableau152[[#This Row],[Montant adapté selon régime et paramètres]],2)),\nIF($E$15=\"oui\",ROUND(Tableau152[[#This Row],[Quantités]]*Tableau152[[#This Row],[Montant adapté selon régime et paramètres]],2),\"erreur\")))))","v":0},"Voir 4.A.1 dans circulaire des travaux pris en compte","l'entrepreneur doit disposer de l'accès à la profession pour les activités de type « Toiture et étanchéité » ou les accès nécessaires selon la nature des travaux réalisés"]
[null,"02.04","Assèchement de murs - humidité ascensionnelle (pied de mur)",8,350,350,{"$f":"IF((Tableau152[[#This Row],[Montant de base primes avec audit travaux entrepreneur]]+Tableau152[[#This Row],[Montant de base primes sans audit \ntravaux par entrepreneur]]+Tableau152[[#This Row],[Montant de base primes sans audit \ntravaux par demandeur]])=0,\"\",IF(AND($E$15=\"oui\",$E$17=\"un entrepreneur\"),Tableau152[[#This Row],[Montant de base primes avec audit travaux entrepreneur]]*$H$11,IF(AND($E$15=\"non\",$E$17=\"un entrepreneur\"),Tableau152[[#This Row],[Montant de base primes sans audit \ntravaux par entrepreneur]]*$H$11,IF(AND($E$15=\"non\",$E$17=\"le demandeur\"),Tableau152[[#This Row],[Montant de base primes sans audit \ntravaux par demandeur]]*$H$11,IF(AND($E$15=\"oui\",$E$17=\"le demandeur\"),Tableau152[[#This Row],[Montant de base primes sans audit \ntravaux par demandeur]]*$H$11,\"erreur\")))))","v":16},{"$f":"IF(Tableau152[[#This Row],[unité]]=\"\",\"\",0)","v":0},{"$f":"IF($E$15=\"oui\",\"m mur\",\"forfait\")","v":"m mur"},{"$f":"IF(Tableau152[[#This Row],[Quantités]]=0,0,IF(Tableau152[[#This Row],[Quantités]]=\"\",\"\",IF(Tableau152[[#This Row],[unité]]=\"forfait\",1*Tableau152[[#This Row],[Montant adapté selon régime et paramètres]],\nIF($E$15=\"non\",IF(ROUND(Tableau152[[#This Row],[Quantités]]*Tableau152[[#This Row],[Montant adapté selon régime et paramètres]],2)>6000,6000,ROUND(Tableau152[[#This Row],[Quantités]]*Tableau152[[#This Row],[Montant adapté selon régime et paramètres]],2)),\nIF($E$15=\"oui\",ROUND(Tableau152[[#This Row],[Quantités]]*Tableau152[[#This Row],[Montant adapté selon régime et paramètres]],2),\"erreur\")))))","v":0},"Voir 4.A.2 dans circulaire des travaux pris en compte","l'entrepreneur doit disposer de l'accès à la profession pour les activités de type « Toiture et étanchéité » ou les accès nécessaires selon la nature des travaux réalisés"]
[null,"02.05","Renforcement / reconstruction de murs instables",8,350,350,{"$f":"IF((Tableau152[[#This Row],[Montant de base primes avec audit travaux entrepreneur]]+Tableau152[[#This Row],[Montant de base primes sans audit \ntravaux par entrepreneur]]+Tableau152[[#This Row],[Montant de base primes sans audit \ntravaux par demandeur]])=0,\"\",IF(AND($E$15=\"oui\",$E$17=\"un entrepreneur\"),Tableau152[[#This Row],[Montant de base primes avec audit travaux entrepreneur]]*$H$11,IF(AND($E$15=\"non\",$E$17=\"un entrepreneur\"),Tableau152[[#This Row],[Montant de base primes sans audit \ntravaux par entrepreneur]]*$H$11,IF(AND($E$15=\"non\",$E$17=\"le demandeur\"),Tableau152[[#This Row],[Montant de base primes sans audit \ntravaux par demandeur]]*$H$11,IF(AND($E$15=\"oui\",$E$17=\"le demandeur\"),Tableau152[[#This Row],[Montant de base primes sans audit \ntravaux par demandeur]]*$H$11,\"erreur\")))))","v":16},{"$f":"IF(Tableau152[[#This Row],[unité]]=\"\",\"\",0)","v":0},{"$f":"IF($E$15=\"oui\",\"m² mur instable\",\"forfait\")","v":"m² mur instable"},{"$f":"IF(Tableau152[[#This Row],[Quantités]]=0,0,IF(Tableau152[[#This Row],[Quantités]]=\"\",\"\",IF(Tableau152[[#This Row],[unité]]=\"forfait\",1*Tableau152[[#This Row],[Montant adapté selon régime et paramètres]],\nIF($E$15=\"non\",IF(ROUND(Tableau152[[#This Row],[Quantités]]*Tableau152[[#This Row],[Montant adapté selon régime et paramètres]],2)>6000,6000,ROUND(Tableau152[[#This Row],[Quantités]]*Tableau152[[#This Row],[Montant adapté selon régime et paramètres]],2)),\nIF($E$15=\"oui\",ROUND(Tableau152[[#This Row],[Quantités]]*Tableau152[[#This Row],[Montant adapté selon régime et paramètres]],2),\"erreur\")))))","v":0},"Voir 4.B. dans circulaire des travaux pris en compte","l'entrepreneur doit disposer de l'accès à la profession de type « Activités de gros-œuvre »"]
[null,"03","SOLS",null,null,null,{"$f":"IF((Tableau152[[#This Row],[Montant de base primes avec audit travaux entrepreneur]]+Tableau152[[#This Row],[Montant de base primes sans audit \ntravaux par entrepreneur]]+Tableau152[[#This Row],[Montant de base primes sans audit \ntravaux par demandeur]])=0,\"\",IF(AND($E$15=\"oui\",$E$17=\"un entrepreneur\"),Tableau152[[#This Row],[Montant de base primes avec audit travaux entrepreneur]]*$H$11,IF(AND($E$15=\"non\",$E$17=\"un entrepreneur\"),Tableau152[[#This Row],[Montant de base primes sans audit \ntravaux par entrepreneur]]*$H$11,IF(AND($E$15=\"non\",$E$17=\"le demandeur\"),Tableau152[[#This Row],[Montant de base primes sans audit \ntravaux par demandeur]]*$H$11,IF(AND($E$15=\"oui\",$E$17=\"le demandeur\"),Tableau152[[#This Row],[Montant de base primes sans audit \ntravaux par demandeur]]*$H$11,\"erreur\")))))","v":""},{"$f":"IF(Tableau152[[#This Row],[unité]]=\"\",\"\",0)","v":""},null,{"$f":"SUM(J41:J45)","v":0}]
[null,"03.01","Isolation thermique de sols",15,null,null,{"$f":"IF((Tableau152[[#This Row],[Montant de base primes avec audit travaux entrepreneur]]+Tableau152[[#This Row],[Montant de base primes sans audit \ntravaux par entrepreneur]]+Tableau152[[#This Row],[Montant de base primes sans audit \ntravaux par demandeur]])=0,\"\",IF(AND($E$15=\"oui\",$E$17=\"un entrepreneur\"),Tableau152[[#This Row],[Montant de base primes avec audit travaux entrepreneur]]*$H$11,IF(AND($E$15=\"non\",$E$17=\"un entrepreneur\"),Tableau152[[#This Row],[Montant de base primes sans audit \ntravaux par entrepreneur]]*$H$11,IF(AND($E$15=\"non\",$E$17=\"le demandeur\"),Tableau152[[#This Row],[Montant de base primes sans audit \ntravaux par demandeur]]*$H$11,IF(AND($E$15=\"oui\",$E$17=\"le demandeur\"),Tableau152[[#This Row],[Montant de base primes sans audit \ntravaux par demandeur]]*$H$11,\"erreur\")))))","v":30},{"$f":"IF(Tableau152[[#This Row],[unité]]=\"\",\"\",0)","v":0},"m² sol isolé",{"$f":"IF(Tableau152[[#This Row],[Quantités]]=0,0,IF(Tableau152[[#This Row],[Quantités]]=\"\",\"\",IF(Tableau152[[#This Row],[unité]]=\"forfait\",1*Tableau152[[#This Row],[Montant adapté selon régime et paramètres]],\nIF($E$15=\"non\",IF(ROUND(Tableau152[[#This Row],[Quantités]]*Tableau152[[#This Row],[Montant adapté selon régime et paramètres]],2)>6000,6000,ROUND(Tableau152[[#This Row],[Quantités]]*Tableau152[[#This Row],[Montant adapté selon régime et paramètres]],2)),\nIF($E$15=\"oui\",ROUND(Tableau152[[#This Row],[Quantités]]*Tableau152[[#This Row],[Montant adapté selon régime et paramètres]],2),\"erreur\")))))","v":0},"R ≥ 3,50 m²K/W\nVoir 8. dans circulaire des travaux pris en compte"]
[null,"03.02","Isolation avec matériau biosourcé de sols",20,null,null,{"$f":"IF((Tableau152[[#This Row],[Montant de base primes avec audit travaux entrepreneur]]+Tableau152[[#This Row],[Montant de base primes sans audit \ntravaux par entrepreneur]]+Tableau152[[#This Row],[Montant de base primes sans audit \ntravaux par demandeur]])=0,\"\",IF(AND($E$15=\"oui\",$E$17=\"un entrepreneur\"),Tableau152[[#This Row],[Montant de base primes avec audit travaux entrepreneur]]*$H$11,IF(AND($E$15=\"non\",$E$17=\"un entrepreneur\"),Tableau152[[#This Row],[Montant de base primes sans audit \ntravaux par entrepreneur]]*$H$11,IF(AND($E$15=\"non\",$E$17=\"le demandeur\"),Tableau152[[#This Row],[Montant de base primes sans audit \ntravaux par demandeur]]*$H$11,IF(AND($E$15=\"oui\",$E$17=\"le demandeur\"),Tableau152[[#This Row],[Montant de base primes sans audit \ntravaux par demandeur]]*$H$11,\"erreur\")))))","v":40},{"$f":"IF(Tableau152[[#This Row],[unité]]=\"\",\"\",0)","v":0},"m² sol isolé",{"$f":"IF(Tableau152[[#This Row],[Quantités]]=0,0,IF(Tableau152[[#This Row],[Quantités]]=\"\",\"\",IF(Tableau152[[#This Row],[unité]]=\"forfait\",1*Tableau152[[#This Row],[Montant adapté selon régime et paramètres]],\nIF($E$15=\"non\",IF(ROUND(Tableau152[[#This Row],[Quantités]]*Tableau152[[#This Row],[Montant adapté selon régime et paramètres]],2)>6000,6000,ROUND(Tableau152[[#This Row],[Quantités]]*Tableau152[[#This Row],[Montant adapté selon régime et paramètres]],2)),\nIF($E$15=\"oui\",ROUND(Tableau152[[#This Row],[Quantités]]*Tableau152[[#This Row],[Montant adapté selon régime et paramètres]],2),\"erreur\")))))","v":0},"R ≥ 3,50 m²K/W\nisolant dont la teneur biosourcée du produit est ≥ 70 % + vérification liste des matériaux éligibles (norme prEN 167828-2:2018)\nVoir 8. dans circulaire des travaux pris en compte","Voir liste des isolants biosourcés éligibles aux primes\n(lien dans les sources des onglets relatifs aux procédures et détails)"]
[null,"03.03","Remplacement de structure porteuse de plancher d'un ou plusieurs locaux",5,null,null,{"$f":"IF((Tableau152[[#This Row],[Montant de base primes avec audit travaux entrepreneur]]+Tableau152[[#This Row],[Montant de base primes sans audit \ntravaux par entrepreneur]]+Tableau152[[#This Row],[Montant de base primes sans audit \ntravaux par demandeur]])=0,\"\",IF(AND($E$15=\"oui\",$E$17=\"un entrepreneur\"),Tableau152[[#This Row],[Montant de base primes avec audit travaux entrepreneur]]*$H$11,IF(AND($E$15=\"non\",$E$17=\"un entrepreneur\"),Tableau152[[#This Row],[Montant de base primes sans audit \ntravaux par entrepreneur]]*$H$11,IF(AND($E$15=\"non\",$E$17=\"le demandeur\"),Tableau152[[#This Row],[Montant de base primes sans audit \ntravaux par demandeur]]*$H$11,IF(AND($E$15=\"oui\",$E$17=\"le demandeur\"),Tableau152[[#This Row],[Montant de base primes sans audit \ntravaux par demandeur]]*$H$11,\"erreur\")))))","v":10},{"$f":"IF(Tableau152[[#This Row],[unité]]=\"\",\"\",0)","v":0},"m² sol",{"$f":"IF(Tableau152[[#This Row],[Quantités]]=0,0,IF(Tableau152[[#This Row],[Quantités]]=\"\",\"\",IF(Tableau152[[#This Row],[unité]]=\"forfait\",1*Tableau152[[#This Row],[Montant adapté selon régime et paramètres]],\nIF($E$15=\"non\",IF(ROUND(Tableau152[[#This Row],[Quantités]]*Tableau152[[#This Row],[Montant adapté selon régime et paramètres]],2)>6000,6000,ROUND(Tableau152[[#This Row],[Quantités]]*Tableau152[[#This Row],[Montant adapté selon régime et paramètres]],2)),\nIF($E$15=\"oui\",ROUND(Tableau152[[#This Row],[Quantités]]*Tableau152[[#This Row],[Montant adapté selon régime et paramètres]],2),\"erreur\")))))","v":0},"Prime non cumulable avec la prime 03.04"]
[null,"03.04","Remplacement des finitions de planchers en cas d'isolation par le haut",5,null,null,{"$f":"IF((Tableau152[[#This Row],[Montant de base primes avec audit travaux entrepreneur]]+Tableau152[[#This Row],[Montant de base primes sans audit \ntravaux par entrepreneur]]+Tableau152[[#This Row],[Montant de base primes sans audit \ntravaux par demandeur]])=0,\"\",IF(AND($E$15=\"oui\",$E$17=\"un entrepreneur\"),Tableau152[[#This Row],[Montant de base primes avec audit travaux entrepreneur]]*$H$11,IF(AND($E$15=\"non\",$E$17=\"un entrepreneur\"),Tableau152[[#This Row],[Montant de base primes sans audit \ntravaux par entrepreneur]]*$H$11,IF(AND($E$15=\"non\",$E$17=\"le demandeur\"),Tableau152[[#This Row],[Montant de base primes sans audit \ntravaux par demandeur]]*$H$11,IF(AND($E$15=\"oui\",$E$17=\"le demandeur\"),Tableau152[[#This Row],[Montant de base primes sans audit \ntravaux par demandeur]]*$H$11,\"erreur\")))))","v":10},{"$f":"IF(Tableau152[[#This Row],[unité]]=\"\",\"\",0)","v":0},"m² sol isolé",{"$f":"IF(Tableau152[[#This Row],[Quantités]]=0,0,IF(Tableau152[[#This Row],[Quantités]]=\"\",\"\",IF(Tableau152[[#This Row],[unité]]=\"forfait\",1*Tableau152[[#This Row],[Montant adapté selon régime et paramètres]],\nIF($E$15=\"non\",IF(ROUND(Tableau152[[#This Row],[Quantités]]*Tableau152[[#This Row],[Montant adapté selon régime et paramètres]],2)>6000,6000,ROUND(Tableau152[[#This Row],[Quantités]]*Tableau152[[#This Row],[Montant adapté selon régime et paramètres]],2)),\nIF($E$15=\"oui\",ROUND(Tableau152[[#This Row],[Quantités]]*Tableau152[[#This Row],[Montant adapté selon régime et paramètres]],2),\"erreur\")))))","v":0},"Prime non cumulable avec la prime 03.03"]
[null,"03.05","Renforcement/reconstruction de supports (gitage, hourdis, …) d'aires de circulation d'un ou plusieurs locaux",350,350,350,{"$f":"IF((Tableau152[[#This Row],[Montant de base primes avec audit travaux entrepreneur]]+Tableau152[[#This Row],[Montant de base primes sans audit \ntravaux par entrepreneur]]+Tableau152[[#This Row],[Montant de base primes sans audit \ntravaux par demandeur]])=0,\"\",IF(AND($E$15=\"oui\",$E$17=\"un entrepreneur\"),Tableau152[[#This Row],[Montant de base primes avec audit travaux entrepreneur]]*$H$11,IF(AND($E$15=\"non\",$E$17=\"un entrepreneur\"),Tableau152[[#This Row],[Montant de base primes sans audit \ntravaux par entrepreneur]]*$H$11,IF(AND($E$15=\"non\",$E$17=\"le demandeur\"),Tableau152[[#This Row],[Montant de base primes sans audit \ntravaux par demandeur]]*$H$11,IF(AND($E$15=\"oui\",$E$17=\"le demandeur\"),Tableau152[[#This Row],[Montant de base primes sans audit \ntravaux par demandeur]]*$H$11,\"erreur\")))))","v":700},{"$f":"IF(Tableau152[[#This Row],[unité]]=\"\",\"\",0)","v":0},"forfait",{"$f":"IF(Tableau152[[#This Row],[Quantités]]=0,0,IF(Tableau152[[#This Row],[Quantités]]=\"\",\"\",IF(Tableau152[[#This Row],[unité]]=\"forfait\",1*Tableau152[[#This Row],[Montant adapté selon régime et paramètres]],\nIF($E$15=\"non\",IF(ROUND(Tableau152[[#This Row],[Quantités]]*Tableau152[[#This Row],[Montant adapté selon régime et paramètres]],2)>6000,6000,ROUND(Tableau152[[#This Row],[Quantités]]*Tableau152[[#This Row],[Montant adapté selon régime et paramètres]],2)),\nIF($E$15=\"oui\",ROUND(Tableau152[[#This Row],[Quantités]]*Tableau152[[#This Row],[Montant adapté selon régime et paramètres]],2),\"erreur\")))))","v":0},"Voir 4.C. dans circulaire des travaux pris en compte","l'entrepreneur doit disposer de l'accès à la profession de type « Activités de gros-œuvre »"]
[null,"04","MENUISERIES EXTERIEURES",null,null,null,{"$f":"IF((Tableau152[[#This Row],[Montant de base primes avec audit travaux entrepreneur]]+Tableau152[[#This Row],[Montant de base primes sans audit \ntravaux par entrepreneur]]+Tableau152[[#This Row],[Montant de base primes sans audit \ntravaux par demandeur]])=0,\"\",IF(AND($E$15=\"oui\",$E$17=\"un entrepreneur\"),Tableau152[[#This Row],[Montant de base primes avec audit travaux entrepreneur]]*$H$11,IF(AND($E$15=\"non\",$E$17=\"un entrepreneur\"),Tableau152[[#This Row],[Montant de base primes sans audit \ntravaux par entrepreneur]]*$H$11,IF(AND($E$15=\"non\",$E$17=\"le demandeur\"),Tableau152[[#This Row],[Montant de base primes sans audit \ntravaux par demandeur]]*$H$11,IF(AND($E$15=\"oui\",$E$17=\"le demandeur\"),Tableau152[[#This Row],[Montant de base primes sans audit \ntravaux par demandeur]]*$H$11,\"erreur\")))))","v":""},{"$f":"IF(Tableau152[[#This Row],[unité]]=\"\",\"\",0)","v":""},null,{"$f":"SUM(J47)","v":0}]
[null,"04.01","Remplacement de menuiseries extérieures (ou vitrages)",65,65,null,{"$f":"IF((Tableau152[[#This Row],[Montant de base primes avec audit travaux entrepreneur]]+Tableau152[[#This Row],[Montant de base primes sans audit \ntravaux par entrepreneur]]+Tableau152[[#This Row],[Montant de base primes sans audit \ntravaux par demandeur]])=0,\"\",IF(AND($E$15=\"oui\",$E$17=\"un entrepreneur\"),Tableau152[[#This Row],[Montant de base primes avec audit travaux entrepreneur]]*$H$11,IF(AND($E$15=\"non\",$E$17=\"un entrepreneur\"),Tableau152[[#This Row],[Montant de base primes sans audit \ntravaux par entrepreneur]]*$H$11,IF(AND($E$15=\"non\",$E$17=\"le demandeur\"),Tableau152[[#This Row],[Montant de base primes sans audit \ntravaux par demandeur]]*$H$11,IF(AND($E$15=\"oui\",$E$17=\"le demandeur\"),Tableau152[[#This Row],[Montant de base primes sans audit \ntravaux par demandeur]]*$H$11,\"erreur\")))))","v":130},{"$f":"IF(Tableau152[[#This Row],[unité]]=\"\",\"\",0)","v":0},"m² châssis / vitrage",{"$f":"IF(Tableau152[[#This Row],[Quantités]]=0,0,IF(Tableau152[[#This Row],[Quantités]]=\"\",\"\",IF(Tableau152[[#This Row],[unité]]=\"forfait\",1*Tableau152[[#This Row],[Montant adapté selon régime et paramètres]],\nIF($E$15=\"non\",IF(ROUND(Tableau152[[#This Row],[Quantités]]*Tableau152[[#This Row],[Montant adapté selon régime et paramètres]],2)>6000,6000,ROUND(Tableau152[[#This Row],[Quantités]]*Tableau152[[#This Row],[Montant adapté selon régime et paramètres]],2)),\nIF($E$15=\"oui\",ROUND(Tableau152[[#This Row],[Quantités]]*Tableau152[[#This Row],[Montant adapté selon régime et paramètres]],2),\"erreur\")))))","v":0},"Uw moyen (châssis + vitrage) ≤ 1,5 W/m²K\nUg/Utp (vitrage uniquement) ≤ 1,1 W/m²K\nles vitrages doivent respecter la norme NBN S23-002\nVoir 9. dans circulaire des travaux pris en compte","l'entrepreneur doit disposer de l'accès à la profession pour les activités de type « Menuiserie et de la vitrerie »"]
[null,"05","PRODUCTION EAU CHAUDE",null,null,null,{"$f":"IF((Tableau152[[#This Row],[Montant de base primes avec audit travaux entrepreneur]]+Tableau152[[#This Row],[Montant de base primes sans audit \ntravaux par entrepreneur]]+Tableau152[[#This Row],[Montant de base primes sans audit \ntravaux par demandeur]])=0,\"\",IF(AND($E$15=\"oui\",$E$17=\"un entrepreneur\"),Tableau152[[#This Row],[Montant de base primes avec audit travaux entrepreneur]]*$H$11,IF(AND($E$15=\"non\",$E$17=\"un entrepreneur\"),Tableau152[[#This Row],[Montant de base primes sans audit \ntravaux par entrepreneur]]*$H$11,IF(AND($E$15=\"non\",$E$17=\"le demandeur\"),Tableau152[[#This Row],[Montant de base primes sans audit \ntravaux par demandeur]]*$H$11,IF(AND($E$15=\"oui\",$E$17=\"le demandeur\"),Tableau152[[#This Row],[Montant de base primes sans audit \ntravaux par demandeur]]*$H$11,\"erreur\")))))","v":""},{"$f":"IF(Tableau152[[#This Row],[unité]]=\"\",\"\",0)","v":""},null,{"$f":"SUM(J49:J53)","v":0}]
[null,"05.01","Pompe à chaleur - uniquement pour eau chaude sanitaire",700,700,null,{"$f":"IF((Tableau152[[#This Row],[Montant de base primes avec audit travaux entrepreneur]]+Tableau152[[#This Row],[Montant de base primes sans audit \ntravaux par entrepreneur]]+Tableau152[[#This Row],[Montant de base primes sans audit \ntravaux par demandeur]])=0,\"\",IF(AND($E$15=\"oui\",$E$17=\"un entrepreneur\"),Tableau152[[#This Row],[Montant de base primes avec audit travaux entrepreneur]]*$H$11,IF(AND($E$15=\"non\",$E$17=\"un entrepreneur\"),Tableau152[[#This Row],[Montant de base primes sans audit \ntravaux par entrepreneur]]*$H$11,IF(AND($E$15=\"non\",$E$17=\"le demandeur\"),Tableau152[[#This Row],[Montant de base primes sans audit \ntravaux par demandeur]]*$H$11,IF(AND($E$15=\"oui\",$E$17=\"le demandeur\"),Tableau152[[#This Row],[Montant de base primes sans audit \ntravaux par demandeur]]*$H$11,\"erreur\")))))","v":1400},{"$f":"IF(Tableau152[[#This Row],[unité]]=\"\",\"\",0)","v":0},"forfait",{"$f":"IF(Tableau152[[#This Row],[Quantités]]=0,0,IF(Tableau152[[#This Row],[Quantités]]=\"\",\"\",IF(Tableau152[[#This Row],[unité]]=\"forfait\",1*Tableau152[[#This Row],[Montant adapté selon régime et paramètres]],\nIF($E$15=\"non\",IF(ROUND(Tableau152[[#This Row],[Quantités]]*Tableau152[[#This Row],[Montant adapté selon régime et paramètres]],2)>6000,6000,ROUND(Tableau152[[#This Row],[Quantités]]*Tableau152[[#This Row],[Montant adapté selon régime et paramètres]],2)),\nIF($E$15=\"oui\",ROUND(Tableau152[[#This Row],[Quantités]]*Tableau152[[#This Row],[Montant adapté selon régime et paramètres]],2),\"erreur\")))))","v":0},"les conditions techniques relatives aux travaux sont détaillées dans la notice « Critères techniques et pièces justificatives » (voir lien dans les sources des onglets relatifs aux procédures et détails)\nVoir 10.A. dans circulaire des travaux pris en compte","l'entrepreneur doit disposer de l'accès à la profession pour les activités de type « Installation de chauffage, de climatisation, de sanitaire et du gaz » et dans certain cas de type « Électrotechnique »"]
[null,"05.02","Pompe à chaleur - pour chauffage ou combinée",1500,null,null,{"$f":"IF((Tableau152[[#This Row],[Montant de base primes avec audit travaux entrepreneur]]+Tableau152[[#This Row],[Montant de base primes sans audit \ntravaux par entrepreneur]]+Tableau152[[#This Row],[Montant de base primes sans audit \ntravaux par demandeur]])=0,\"\",IF(AND($E$15=\"oui\",$E$17=\"un entrepreneur\"),Tableau152[[#This Row],[Montant de base primes avec audit travaux entrepreneur]]*$H$11,IF(AND($E$15=\"non\",$E$17=\"un entrepreneur\"),Tableau152[[#This Row],[Montant de base primes sans audit \ntravaux par entrepreneur]]*$H$11,IF(AND($E$15=\"non\",$E$17=\"le demandeur\"),Tableau152[[#This Row],[Montant de base primes sans audit \ntravaux par demandeur]]*$H$11,IF(AND($E$15=\"oui\",$E$17=\"le demandeur\"),Tableau152[[#This Row],[Montant de base primes sans audit \ntravaux par demandeur]]*$H$11,\"erreur\")))))","v":3000},{"$f":"IF(Tableau152[[#This Row],[unité]]=\"\",\"\",0)","v":0},"forfait",{"$f":"IF(Tableau152[[#This Row],[Quantités]]=0,0,IF(Tableau152[[#This Row],[Quantités]]=\"\",\"\",IF(Tableau152[[#This Row],[unité]]=\"forfait\",1*Tableau152[[#This Row],[Montant adapté selon régime et paramètres]],\nIF($E$15=\"non\",IF(ROUND(Tableau152[[#This Row],[Quantités]]*Tableau152[[#This Row],[Montant adapté selon régime et paramètres]],2)>6000,6000,ROUND(Tableau152[[#This Row],[Quantités]]*Tableau152[[#This Row],[Montant adapté selon régime et paramètres]],2)),\nIF($E$15=\"oui\",ROUND(Tableau152[[#This Row],[Quantités]]*Tableau152[[#This Row],[Montant adapté selon régime et paramètres]],2),\"erreur\")))))","v":0},"les conditions techniques relatives aux travaux sont détaillées dans la notice « Critères techniques et pièces justificatives » (voir lien dans les sources des onglets relatifs aux procédures et détails)\nVoir 10.B. dans circulaire des travaux pris en compte","l'entrepreneur doit disposer de l'accès à la profession pour les activités de type « Installation de chauffage, de climatisation, de sanitaire et du gaz » et dans certain cas de type « Électrotechnique »"]
[null,"05.03","Chaudière biomasse",1800,null,null,{"$f":"IF((Tableau152[[#This Row],[Montant de base primes avec audit travaux entrepreneur]]+Tableau152[[#This Row],[Montant de base primes sans audit \ntravaux par entrepreneur]]+Tableau152[[#This Row],[Montant de base primes sans audit \ntravaux par demandeur]])=0,\"\",IF(AND($E$15=\"oui\",$E$17=\"un entrepreneur\"),Tableau152[[#This Row],[Montant de base primes avec audit travaux entrepreneur]]*$H$11,IF(AND($E$15=\"non\",$E$17=\"un entrepreneur\"),Tableau152[[#This Row],[Montant de base primes sans audit \ntravaux par entrepreneur]]*$H$11,IF(AND($E$15=\"non\",$E$17=\"le demandeur\"),Tableau152[[#This Row],[Montant de base primes sans audit \ntravaux par demandeur]]*$H$11,IF(AND($E$15=\"oui\",$E$17=\"le demandeur\"),Tableau152[[#This Row],[Montant de base primes sans audit \ntravaux par demandeur]]*$H$11,\"erreur\")))))","v":3600},{"$f":"IF(Tableau152[[#This Row],[unité]]=\"\",\"\",0)","v":0},"forfait",{"$f":"IF(Tableau152[[#This Row],[Quantités]]=0,0,IF(Tableau152[[#This Row],[Quantités]]=\"\",\"\",IF(Tableau152[[#This Row],[unité]]=\"forfait\",1*Tableau152[[#This Row],[Montant adapté selon régime et paramètres]],\nIF($E$15=\"non\",IF(ROUND(Tableau152[[#This Row],[Quantités]]*Tableau152[[#This Row],[Montant adapté selon régime et paramètres]],2)>6000,6000,ROUND(Tableau152[[#This Row],[Quantités]]*Tableau152[[#This Row],[Montant adapté selon régime et paramètres]],2)),\nIF($E$15=\"oui\",ROUND(Tableau152[[#This Row],[Quantités]]*Tableau152[[#This Row],[Montant adapté selon régime et paramètres]],2),\"erreur\")))))","v":0},"les conditions techniques relatives aux travaux sont détaillées dans la notice « Critères techniques et pièces justificatives » (voir lien dans les sources des onglets relatifs aux procédures et détails)\nVoir 10.C. dans circulaire des travaux pris en compte","l'entrepreneur doit disposer de l'accès à la profession pour les activités de type « Installation de chauffage, de climatisation, de sanitaire et du gaz » et dans certain cas de type « Électrotechnique »"]
[null,"05.04","Poêle biomasse local",400,null,null,{"$f":"IF((Tableau152[[#This Row],[Montant de base primes avec audit travaux entrepreneur]]+Tableau152[[#This Row],[Montant de base primes sans audit \ntravaux par entrepreneur]]+Tableau152[[#This Row],[Montant de base primes sans audit \ntravaux par demandeur]])=0,\"\",IF(AND($E$15=\"oui\",$E$17=\"un entrepreneur\"),Tableau152[[#This Row],[Montant de base primes avec audit travaux entrepreneur]]*$H$11,IF(AND($E$15=\"non\",$E$17=\"un entrepreneur\"),Tableau152[[#This Row],[Montant de base primes sans audit \ntravaux par entrepreneur]]*$H$11,IF(AND($E$15=\"non\",$E$17=\"le demandeur\"),Tableau152[[#This Row],[Montant de base primes sans audit \ntravaux par demandeur]]*$H$11,IF(AND($E$15=\"oui\",$E$17=\"le demandeur\"),Tableau152[[#This Row],[Montant de base primes sans audit \ntravaux par demandeur]]*$H$11,\"erreur\")))))","v":800},{"$f":"IF(Tableau152[[#This Row],[unité]]=\"\",\"\",0)","v":0},"forfait",{"$f":"IF(Tableau152[[#This Row],[Quantités]]=0,0,IF(Tableau152[[#This Row],[Quantités]]=\"\",\"\",IF(Tableau152[[#This Row],[unité]]=\"forfait\",1*Tableau152[[#This Row],[Montant adapté selon régime et paramètres]],\nIF($E$15=\"non\",IF(ROUND(Tableau152[[#This Row],[Quantités]]*Tableau152[[#This Row],[Montant adapté selon régime et paramètres]],2)>6000,6000,ROUND(Tableau152[[#This Row],[Quantités]]*Tableau152[[#This Row],[Montant adapté selon régime et paramètres]],2)),\nIF($E$15=\"oui\",ROUND(Tableau152[[#This Row],[Quantités]]*Tableau152[[#This Row],[Montant adapté selon régime et paramètres]],2),\"erreur\")))))","v":0},"les conditions techniques relatives aux travaux sont détaillées dans la notice « Critères techniques et pièces justificatives » (voir lien dans les sources des onglets relatifs aux procédures et détails)\nVoir 10.E. dans circulaire des travaux pris en compte","l'entrepreneur doit disposer de l'accès à la profession pour les activités de type « Installation de chauffage, de climatisation, de sanitaire et du gaz » et dans certain cas de type « Électrotechnique »"]
[null,"05.05","Chauffe-eau solaire",1050,null,null,{"$f":"IF((Tableau152[[#This Row],[Montant de base primes avec audit travaux entrepreneur]]+Tableau152[[#This Row],[Montant de base primes sans audit \ntravaux par entrepreneur]]+Tableau152[[#This Row],[Montant de base primes sans audit \ntravaux par demandeur]])=0,\"\",IF(AND($E$15=\"oui\",$E$17=\"un entrepreneur\"),Tableau152[[#This Row],[Montant de base primes avec audit travaux entrepreneur]]*$H$11,IF(AND($E$15=\"non\",$E$17=\"un entrepreneur\"),Tableau152[[#This Row],[Montant de base primes sans audit \ntravaux par entrepreneur]]*$H$11,IF(AND($E$15=\"non\",$E$17=\"le demandeur\"),Tableau152[[#This Row],[Montant de base primes sans audit \ntravaux par demandeur]]*$H$11,IF(AND($E$15=\"oui\",$E$17=\"le demandeur\"),Tableau152[[#This Row],[Montant de base primes sans audit \ntravaux par demandeur]]*$H$11,\"erreur\")))))","v":2100},{"$f":"IF(Tableau152[[#This Row],[unité]]=\"\",\"\",0)","v":0},"forfait",{"$f":"IF(Tableau152[[#This Row],[Quantités]]=0,0,IF(Tableau152[[#This Row],[Quantités]]=\"\",\"\",IF(Tableau152[[#This Row],[unité]]=\"forfait\",1*Tableau152[[#This Row],[Montant adapté selon régime et paramètres]],\nIF($E$15=\"non\",IF(ROUND(Tableau152[[#This Row],[Quantités]]*Tableau152[[#This Row],[Montant adapté selon régime et paramètres]],2)>6000,6000,ROUND(Tableau152[[#This Row],[Quantités]]*Tableau152[[#This Row],[Montant adapté selon régime et paramètres]],2)),\nIF($E$15=\"oui\",ROUND(Tableau152[[#This Row],[Quantités]]*Tableau152[[#This Row],[Montant adapté selon régime et paramètres]],2),\"erreur\")))))","v":0},"les conditions techniques relatives aux travaux sont détaillées dans la notice « Critères techniques et pièces justificatives » (voir lien dans les sources des onglets relatifs aux procédures et détails)\nVoir 10.D. dans circulaire des travaux pris en compte","l'entrepreneur doit disposer de l'accès à la profession pour les activités de type « Installation de chauffage, de climatisation, de sanitaire et du gaz » et dans certain cas de type « Électrotechnique »"]
[null,"06","CHAUFFAGE - production / distribution / stock",null,null,null,{"$f":"IF((Tableau152[[#This Row],[Montant de base primes avec audit travaux entrepreneur]]+Tableau152[[#This Row],[Montant de base primes sans audit \ntravaux par entrepreneur]]+Tableau152[[#This Row],[Montant de base primes sans audit \ntravaux par demandeur]])=0,\"\",IF(AND($E$15=\"oui\",$E$17=\"un entrepreneur\"),Tableau152[[#This Row],[Montant de base primes avec audit travaux entrepreneur]]*$H$11,IF(AND($E$15=\"non\",$E$17=\"un entrepreneur\"),Tableau152[[#This Row],[Montant de base primes sans audit \ntravaux par entrepreneur]]*$H$11,IF(AND($E$15=\"non\",$E$17=\"le demandeur\"),Tableau152[[#This Row],[Montant de base primes sans audit \ntravaux par demandeur]]*$H$11,IF(AND($E$15=\"oui\",$E$17=\"le demandeur\"),Tableau152[[#This Row],[Montant de base primes sans audit \ntravaux par demandeur]]*$H$11,\"erreur\")))))","v":""},{"$f":"IF(Tableau152[[#This Row],[unité]]=\"\",\"\",0)","v":""},null,{"$f":"SUM(J55:J63)","v":0}]
[null,"06.01","Isolation des conduites, gaines et vannes de chauffage hors du volume protégé (caves, garage, extérieur, …)",85,85,null,{"$f":"IF((Tableau152[[#This Row],[Montant de base primes avec audit travaux entrepreneur]]+Tableau152[[#This Row],[Montant de base primes sans audit \ntravaux par entrepreneur]]+Tableau152[[#This Row],[Montant de base primes sans audit \ntravaux par demandeur]])=0,\"\",IF(AND($E$15=\"oui\",$E$17=\"un entrepreneur\"),Tableau152[[#This Row],[Montant de base primes avec audit travaux entrepreneur]]*$H$11,IF(AND($E$15=\"non\",$E$17=\"un entrepreneur\"),Tableau152[[#This Row],[Montant de base primes sans audit \ntravaux par entrepreneur]]*$H$11,IF(AND($E$15=\"non\",$E$17=\"le demandeur\"),Tableau152[[#This Row],[Montant de base primes sans audit \ntravaux par demandeur]]*$H$11,IF(AND($E$15=\"oui\",$E$17=\"le demandeur\"),Tableau152[[#This Row],[Montant de base primes sans audit \ntravaux par demandeur]]*$H$11,\"erreur\")))))","v":170},{"$f":"IF(Tableau152[[#This Row],[unité]]=\"\",\"\",0)","v":0},"forfait",{"$f":"IF(Tableau152[[#This Row],[Quantités]]=0,0,IF(Tableau152[[#This Row],[Quantités]]=\"\",\"\",IF(Tableau152[[#This Row],[unité]]=\"forfait\",1*Tableau152[[#This Row],[Montant adapté selon régime et paramètres]],\nIF($E$15=\"non\",IF(ROUND(Tableau152[[#This Row],[Quantités]]*Tableau152[[#This Row],[Montant adapté selon régime et paramètres]],2)>6000,6000,ROUND(Tableau152[[#This Row],[Quantités]]*Tableau152[[#This Row],[Montant adapté selon régime et paramètres]],2)),\nIF($E$15=\"oui\",ROUND(Tableau152[[#This Row],[Quantités]]*Tableau152[[#This Row],[Montant adapté selon régime et paramètres]],2),\"erreur\")))))","v":0},"Respect exigences d’isolation + Copie du rapport du chauffagiste - www.energie.wallonie.be\nVoir 13. dans circulaire des travaux pris en compte"]
[null,"06.02","Circulateurs à vitesse variable - jusqu'à 3 logements",35,35,null,{"$f":"IF((Tableau152[[#This Row],[Montant de base primes avec audit travaux entrepreneur]]+Tableau152[[#This Row],[Montant de base primes sans audit \ntravaux par entrepreneur]]+Tableau152[[#This Row],[Montant de base primes sans audit \ntravaux par demandeur]])=0,\"\",IF(AND($E$15=\"oui\",$E$17=\"un entrepreneur\"),Tableau152[[#This Row],[Montant de base primes avec audit travaux entrepreneur]]*$H$11,IF(AND($E$15=\"non\",$E$17=\"un entrepreneur\"),Tableau152[[#This Row],[Montant de base primes sans audit \ntravaux par entrepreneur]]*$H$11,IF(AND($E$15=\"non\",$E$17=\"le demandeur\"),Tableau152[[#This Row],[Montant de base primes sans audit \ntravaux par demandeur]]*$H$11,IF(AND($E$15=\"oui\",$E$17=\"le demandeur\"),Tableau152[[#This Row],[Montant de base primes sans audit \ntravaux par demandeur]]*$H$11,\"erreur\")))))","v":70},{"$f":"IF(Tableau152[[#This Row],[unité]]=\"\",\"\",0)","v":0},"circulateur",{"$f":"IF(Tableau152[[#This Row],[Quantités]]=0,0,IF(Tableau152[[#This Row],[Quantités]]=\"\",\"\",IF(Tableau152[[#This Row],[unité]]=\"forfait\",1*Tableau152[[#This Row],[Montant adapté selon régime et paramètres]],\nIF($E$15=\"non\",IF(ROUND(Tableau152[[#This Row],[Quantités]]*Tableau152[[#This Row],[Montant adapté selon régime et paramètres]],2)>6000,6000,ROUND(Tableau152[[#This Row],[Quantités]]*Tableau152[[#This Row],[Montant adapté selon régime et paramètres]],2)),\nIF($E$15=\"oui\",ROUND(Tableau152[[#This Row],[Quantités]]*Tableau152[[#This Row],[Montant adapté selon régime et paramètres]],2),\"erreur\")))))","v":0},"les conditions techniques relatives aux travaux sont détaillées dans la notice « Critères techniques et pièces justificatives » (voir lien dans les sources des onglets relatifs aux procédures et détails)\n+ Apporter une preuve de variabilité\nVoir 15. dans circulaire des travaux pris en compte","l'entrepreneur doit disposer de l'accès à la profession pour les activités de type « Installation de chauffage, de climatisation, de sanitaire et du gaz » et dans certain cas de type « Électrotechnique »"]
[null,"06.03","Circulateurs à vitesse variable - à partir de 4 logements",190,190,null,{"$f":"IF((Tableau152[[#This Row],[Montant de base primes avec audit travaux entrepreneur]]+Tableau152[[#This Row],[Montant de base primes sans audit \ntravaux par entrepreneur]]+Tableau152[[#This Row],[Montant de base primes sans audit \ntravaux par demandeur]])=0,\"\",IF(AND($E$15=\"oui\",$E$17=\"un entrepreneur\"),Tableau152[[#This Row],[Montant de base primes avec audit travaux entrepreneur]]*$H$11,IF(AND($E$15=\"non\",$E$17=\"un entrepreneur\"),Tableau152[[#This Row],[Montant de base primes sans audit \ntravaux par entrepreneur]]*$H$11,IF(AND($E$15=\"non\",$E$17=\"le demandeur\"),Tableau152[[#This Row],[Montant de base primes sans audit \ntravaux par demandeur]]*$H$11,IF(AND($E$15=\"oui\",$E$17=\"le demandeur\"),Tableau152[[#This Row],[Montant de base primes sans audit \ntravaux par demandeur]]*$H$11,\"erreur\")))))","v":380},{"$f":"IF(Tableau152[[#This Row],[unité]]=\"\",\"\",0)","v":0},"circulateur",{"$f":"IF(Tableau152[[#This Row],[Quantités]]=0,0,IF(Tableau152[[#This Row],[Quantités]]=\"\",\"\",IF(Tableau152[[#This Row],[unité]]=\"forfait\",1*Tableau152[[#This Row],[Montant adapté selon régime et paramètres]],\nIF($E$15=\"non\",IF(ROUND(Tableau152[[#This Row],[Quantités]]*Tableau152[[#This Row],[Montant adapté selon régime et paramètres]],2)>6000,6000,ROUND(Tableau152[[#This Row],[Quantités]]*Tableau152[[#This Row],[Montant adapté selon régime et paramètres]],2)),\nIF($E$15=\"oui\",ROUND(Tableau152[[#This Row],[Quantités]]*Tableau152[[#This Row],[Montant adapté selon régime et paramètres]],2),\"erreur\")))))","v":0},"les conditions techniques relatives aux travaux sont détaillées dans la notice « Critères techniques et pièces justificatives » (voir lien dans les sources des onglets relatifs aux procédures et détails)\n+ Apporter une preuve de variabilité\nVoir 15. dans circulaire des travaux pris en compte","l'entrepreneur doit disposer de l'accès à la profession pour les activités de type « Installation de chauffage, de climatisation, de sanitaire et du gaz » et dans certain cas de type « Électrotechnique »"]
[null,"06.04","Isolation du ballon de stockage de chauffage - ≤ 500 litres",50,50,null,{"$f":"IF((Tableau152[[#This Row],[Montant de base primes avec audit travaux entrepreneur]]+Tableau152[[#This Row],[Montant de base primes sans audit \ntravaux par entrepreneur]]+Tableau152[[#This Row],[Montant de base primes sans audit \ntravaux par demandeur]])=0,\"\",IF(AND($E$15=\"oui\",$E$17=\"un entrepreneur\"),Tableau152[[#This Row],[Montant de base primes avec audit travaux entrepreneur]]*$H$11,IF(AND($E$15=\"non\",$E$17=\"un entrepreneur\"),Tableau152[[#This Row],[Montant de base primes sans audit \ntravaux par entrepreneur]]*$H$11,IF(AND($E$15=\"non\",$E$17=\"le demandeur\"),Tableau152[[#This Row],[Montant de base primes sans audit \ntravaux par demandeur]]*$H$11,IF(AND($E$15=\"oui\",$E$17=\"le demandeur\"),Tableau152[[#This Row],[Montant de base primes sans audit \ntravaux par demandeur]]*$H$11,\"erreur\")))))","v":100},{"$f":"IF(Tableau152[[#This Row],[unité]]=\"\",\"\",0)","v":0},"forfait",{"$f":"IF(Tableau152[[#This Row],[Quantités]]=0,0,IF(Tableau152[[#This Row],[Quantités]]=\"\",\"\",IF(Tableau152[[#This Row],[unité]]=\"forfait\",1*Tableau152[[#This Row],[Montant adapté selon régime et paramètres]],\nIF($E$15=\"non\",IF(ROUND(Tableau152[[#This Row],[Quantités]]*Tableau152[[#This Row],[Montant adapté selon régime et paramètres]],2)>6000,6000,ROUND(Tableau152[[#This Row],[Quantités]]*Tableau152[[#This Row],[Montant adapté selon régime et paramètres]],2)),\nIF($E$15=\"oui\",ROUND(Tableau152[[#This Row],[Quantités]]*Tableau152[[#This Row],[Montant adapté selon régime et paramètres]],2),\"erreur\")))))","v":0},"R ≥ 1,5m²K/W\nVoir 14. dans circulaire des travaux pris en compte"]
[null,"06.05","Isolation du ballon de stockage de chauffage - > 500 litres",85,85,null,{"$f":"IF((Tableau152[[#This Row],[Montant de base primes avec audit travaux entrepreneur]]+Tableau152[[#This Row],[Montant de base primes sans audit \ntravaux par entrepreneur]]+Tableau152[[#This Row],[Montant de base primes sans audit \ntravaux par demandeur]])=0,\"\",IF(AND($E$15=\"oui\",$E$17=\"un entrepreneur\"),Tableau152[[#This Row],[Montant de base primes avec audit travaux entrepreneur]]*$H$11,IF(AND($E$15=\"non\",$E$17=\"un entrepreneur\"),Tableau152[[#This Row],[Montant de base primes sans audit \ntravaux par entrepreneur]]*$H$11,IF(AND($E$15=\"non\",$E$17=\"le demandeur\"),Tableau152[[#This Row],[Montant de base primes sans audit \ntravaux par demandeur]]*$H$11,IF(AND($E$15=\"oui\",$E$17=\"le demandeur\"),Tableau152[[#This Row],[Montant de base primes sans audit \ntravaux par demandeur]]*$H$11,\"erreur\")))))","v":170},{"$f":"IF(Tableau152[[#This Row],[unité]]=\"\",\"\",0)","v":0},"forfait",{"$f":"IF(Tableau152[[#This Row],[Quantités]]=0,0,IF(Tableau152[[#This Row],[Quantités]]=\"\",\"\",IF(Tableau152[[#This Row],[unité]]=\"forfait\",1*Tableau152[[#This Row],[Montant adapté selon régime et paramètres]],\nIF($E$15=\"non\",IF(ROUND(Tableau152[[#This Row],[Quantités]]*Tableau152[[#This Row],[Montant adapté selon régime et paramètres]],2)>6000,6000,ROUND(Tableau152[[#This Row],[Quantités]]*Tableau152[[#This Row],[Montant adapté selon régime et paramètres]],2)),\nIF($E$15=\"oui\",ROUND(Tableau152[[#This Row],[Quantités]]*Tableau152[[#This Row],[Montant adapté selon régime et paramètres]],2),\"erreur\")))))","v":0},"R ≥ 1,5m²K/W\nVoir 14. dans circulaire des travaux pris en compte"]
[null,"06.06","Remplacement du ballon de stockage de chauffage - ≤ 500 litres",100,100,null,{"$f":"IF((Tableau152[[#This Row],[Montant de base primes avec audit travaux entrepreneur]]+Tableau152[[#This Row],[Montant de base primes sans audit \ntravaux par entrepreneur]]+Tableau152[[#This Row],[Montant de base primes sans audit \ntravaux par demandeur]])=0,\"\",IF(AND($E$15=\"oui\",$E$17=\"un entrepreneur\"),Tableau152[[#This Row],[Montant de base primes avec audit travaux entrepreneur]]*$H$11,IF(AND($E$15=\"non\",$E$17=\"un entrepreneur\"),Tableau152[[#This Row],[Montant de base primes sans audit \ntravaux par entrepreneur]]*$H$11,IF(AND($E$15=\"non\",$E$17=\"le demandeur\"),Tableau152[[#This Row],[Montant de base primes sans audit \ntravaux par demandeur]]*$H$11,IF(AND($E$15=\"oui\",$E$17=\"le demandeur\"),Tableau152[[#This Row],[Montant de base primes sans audit \ntravaux par demandeur]]*$H$11,\"erreur\")))))","v":200},{"$f":"IF(Tableau152[[#This Row],[unité]]=\"\",\"\",0)","v":0},"forfait",{"$f":"IF(Tableau152[[#This Row],[Quantités]]=0,0,IF(Tableau152[[#This Row],[Quantités]]=\"\",\"\",IF(Tableau152[[#This Row],[unité]]=\"forfait\",1*Tableau152[[#This Row],[Montant adapté selon régime et paramètres]],\nIF($E$15=\"non\",IF(ROUND(Tableau152[[#This Row],[Quantités]]*Tableau152[[#This Row],[Montant adapté selon régime et paramètres]],2)>6000,6000,ROUND(Tableau152[[#This Row],[Quantités]]*Tableau152[[#This Row],[Montant adapté selon régime et paramètres]],2)),\nIF($E$15=\"oui\",ROUND(Tableau152[[#This Row],[Quantités]]*Tableau152[[#This Row],[Montant adapté selon régime et paramètres]],2),\"erreur\")))))","v":0},"les conditions techniques relatives aux travaux sont détaillées dans la notice « Critères techniques et pièces justificatives » (voir lien dans les sources des onglets relatifs aux procédures et détails)\n+ Apporter une preuve de variabilité\nVoir 16. dans circulaire des travaux pris en compte","l'entrepreneur doit disposer de l'accès à la profession pour les activités de type « Installation de chauffage, de climatisation, de sanitaire et du gaz » et dans certain cas de type « Électrotechnique »"]
[null,"06.07","Remplacement du ballon de stockage de chauffage - > 500 litres",170,170,null,{"$f":"IF((Tableau152[[#This Row],[Montant de base primes avec audit travaux entrepreneur]]+Tableau152[[#This Row],[Montant de base primes sans audit \ntravaux par entrepreneur]]+Tableau152[[#This Row],[Montant de base primes sans audit \ntravaux par demandeur]])=0,\"\",IF(AND($E$15=\"oui\",$E$17=\"un entrepreneur\"),Tableau152[[#This Row],[Montant de base primes avec audit travaux entrepreneur]]*$H$11,IF(AND($E$15=\"non\",$E$17=\"un entrepreneur\"),Tableau152[[#This Row],[Montant de base primes sans audit \ntravaux par entrepreneur]]*$H$11,IF(AND($E$15=\"non\",$E$17=\"le demandeur\"),Tableau152[[#This Row],[Montant de base primes sans audit \ntravaux par demandeur]]*$H$11,IF(AND($E$15=\"oui\",$E$17=\"le demandeur\"),Tableau152[[#This Row],[Montant de base primes sans audit \ntravaux par demandeur]]*$H$11,\"erreur\")))))","v":340},{"$f":"IF(Tableau152[[#This Row],[unité]]=\"\",\"\",0)","v":0},"forfait",{"$f":"IF(Tableau152[[#This Row],[Quantités]]=0,0,IF(Tableau152[[#This Row],[Quantités]]=\"\",\"\",IF(Tableau152[[#This Row],[unité]]=\"forfait\",1*Tableau152[[#This Row],[Montant adapté selon régime et paramètres]],\nIF($E$15=\"non\",IF(ROUND(Tableau152[[#This Row],[Quantités]]*Tableau152[[#This Row],[Montant adapté selon régime et paramètres]],2)>6000,6000,ROUND(Tableau152[[#This Row],[Quantités]]*Tableau152[[#This Row],[Montant adapté selon régime et paramètres]],2)),\nIF($E$15=\"oui\",ROUND(Tableau152[[#This Row],[Quantités]]*Tableau152[[#This Row],[Montant adapté selon régime et paramètres]],2),\"erreur\")))))","v":0},"les conditions techniques relatives aux travaux sont détaillées dans la notice « Critères techniques et pièces justificatives » (voir lien dans les sources des onglets relatifs aux procédures et détails)\n+ Apporter une preuve de variabilité\nVoir 16. dans circulaire des travaux pris en compte","l'entrepreneur doit disposer de l'accès à la profession pour les activités de type « Installation de chauffage, de climatisation, de sanitaire et du gaz » et dans certain cas de type « Électrotechnique »"]
[null,"06.08","Placement de vannes thermostatiques",10,10,null,{"$f":"IF((Tableau152[[#This Row],[Montant de base primes avec audit travaux entrepreneur]]+Tableau152[[#This Row],[Montant de base primes sans audit \ntravaux par entrepreneur]]+Tableau152[[#This Row],[Montant de base primes sans audit \ntravaux par demandeur]])=0,\"\",IF(AND($E$15=\"oui\",$E$17=\"un entrepreneur\"),Tableau152[[#This Row],[Montant de base primes avec audit travaux entrepreneur]]*$H$11,IF(AND($E$15=\"non\",$E$17=\"un entrepreneur\"),Tableau152[[#This Row],[Montant de base primes sans audit \ntravaux par entrepreneur]]*$H$11,IF(AND($E$15=\"non\",$E$17=\"le demandeur\"),Tableau152[[#This Row],[Montant de base primes sans audit \ntravaux par demandeur]]*$H$11,IF(AND($E$15=\"oui\",$E$17=\"le demandeur\"),Tableau152[[#This Row],[Montant de base primes sans audit \ntravaux par demandeur]]*$H$11,\"erreur\")))))","v":20},{"$f":"IF(Tableau152[[#This Row],[unité]]=\"\",\"\",0)","v":0},"vanne",{"$f":"IF(Tableau152[[#This Row],[Quantités]]=0,0,IF(Tableau152[[#This Row],[Quantités]]=\"\",\"\",IF(Tableau152[[#This Row],[unité]]=\"forfait\",1*Tableau152[[#This Row],[Montant adapté selon régime et paramètres]],\nIF($E$15=\"non\",IF(ROUND(Tableau152[[#This Row],[Quantités]]*Tableau152[[#This Row],[Montant adapté selon régime et paramètres]],2)>6000,6000,ROUND(Tableau152[[#This Row],[Quantités]]*Tableau152[[#This Row],[Montant adapté selon régime et paramètres]],2)),\nIF($E$15=\"oui\",ROUND(Tableau152[[#This Row],[Quantités]]*Tableau152[[#This Row],[Montant adapté selon régime et paramètres]],2),\"erreur\")))))","v":0},"Placement de minimum 5 vannes !\nVoir 17. dans circulaire des travaux pris en compte"]
[null,"06.09","Placement d'un thermostat d'ambiance",40,40,null,{"$f":"IF((Tableau152[[#This Row],[Montant de base primes avec audit travaux entrepreneur]]+Tableau152[[#This Row],[Montant de base primes sans audit \ntravaux par entrepreneur]]+Tableau152[[#This Row],[Montant de base primes sans audit \ntravaux par demandeur]])=0,\"\",IF(AND($E$15=\"oui\",$E$17=\"un entrepreneur\"),Tableau152[[#This Row],[Montant de base primes avec audit travaux entrepreneur]]*$H$11,IF(AND($E$15=\"non\",$E$17=\"un entrepreneur\"),Tableau152[[#This Row],[Montant de base primes sans audit \ntravaux par entrepreneur]]*$H$11,IF(AND($E$15=\"non\",$E$17=\"le demandeur\"),Tableau152[[#This Row],[Montant de base primes sans audit \ntravaux par demandeur]]*$H$11,IF(AND($E$15=\"oui\",$E$17=\"le demandeur\"),Tableau152[[#This Row],[Montant de base primes sans audit \ntravaux par demandeur]]*$H$11,\"erreur\")))))","v":80},{"$f":"IF(Tableau152[[#This Row],[unité]]=\"\",\"\",0)","v":0},"forfait",{"$f":"IF(Tableau152[[#This Row],[Quantités]]=0,0,IF(Tableau152[[#This Row],[Quantités]]=\"\",\"\",IF(Tableau152[[#This Row],[unité]]=\"forfait\",1*Tableau152[[#This Row],[Montant adapté selon régime et paramètres]],\nIF($E$15=\"non\",IF(ROUND(Tableau152[[#This Row],[Quantités]]*Tableau152[[#This Row],[Montant adapté selon régime et paramètres]],2)>6000,6000,ROUND(Tableau152[[#This Row],[Quantités]]*Tableau152[[#This Row],[Montant adapté selon régime et paramètres]],2)),\nIF($E$15=\"oui\",ROUND(Tableau152[[#This Row],[Quantités]]*Tableau152[[#This Row],[Montant adapté selon régime et paramètres]],2),\"erreur\")))))","v":0},"Voir 18. dans circulaire des travaux pris en compte"]
[null,"07","SANITAIRE - production / distribution / stock",null,null,null,{"$f":"IF((Tableau152[[#This Row],[Montant de base primes avec audit travaux entrepreneur]]+Tableau152[[#This Row],[Montant de base primes sans audit \ntravaux par entrepreneur]]+Tableau152[[#This Row],[Montant de base primes sans audit \ntravaux par demandeur]])=0,\"\",IF(AND($E$15=\"oui\",$E$17=\"un entrepreneur\"),Tableau152[[#This Row],[Montant de base primes avec audit travaux entrepreneur]]*$H$11,IF(AND($E$15=\"non\",$E$17=\"un entrepreneur\"),Tableau152[[#This Row],[Montant de base primes sans audit \ntravaux par entrepreneur]]*$H$11,IF(AND($E$15=\"non\",$E$17=\"le demandeur\"),Tableau152[[#This Row],[Montant de base primes sans audit \ntravaux par demandeur]]*$H$11,IF(AND($E$15=\"oui\",$E$17=\"le demandeur\"),Tableau152[[#This Row],[Montant de base primes sans audit \ntravaux par demandeur]]*$H$11,\"erreur\")))))","v":""},{"$f":"IF(Tableau152[[#This Row],[unité]]=\"\",\"\",0)","v":""},null,{"$f":"SUM(J65:J70)","v":0}]
[null,"07.01","Isolation d'un ballon de stockage pour l'eau chaude sanitaire < 500 litres",50,50,null,{"$f":"IF((Tableau152[[#This Row],[Montant de base primes avec audit travaux entrepreneur]]+Tableau152[[#This Row],[Montant de base primes sans audit \ntravaux par entrepreneur]]+Tableau152[[#This Row],[Montant de base primes sans audit \ntravaux par demandeur]])=0,\"\",IF(AND($E$15=\"oui\",$E$17=\"un entrepreneur\"),Tableau152[[#This Row],[Montant de base primes avec audit travaux entrepreneur]]*$H$11,IF(AND($E$15=\"non\",$E$17=\"un entrepreneur\"),Tableau152[[#This Row],[Montant de base primes sans audit \ntravaux par entrepreneur]]*$H$11,IF(AND($E$15=\"non\",$E$17=\"le demandeur\"),Tableau152[[#This Row],[Montant de base primes sans audit \ntravaux par demandeur]]*$H$11,IF(AND($E$15=\"oui\",$E$17=\"le demandeur\"),Tableau152[[#This Row],[Montant de base primes sans audit \ntravaux par demandeur]]*$H$11,\"erreur\")))))","v":100},{"$f":"IF(Tableau152[[#This Row],[unité]]=\"\",\"\",0)","v":0},"forfait",{"$f":"IF(Tableau152[[#This Row],[Quantités]]=0,0,IF(Tableau152[[#This Row],[Quantités]]=\"\",\"\",IF(Tableau152[[#This Row],[unité]]=\"forfait\",1*Tableau152[[#This Row],[Montant adapté selon régime et paramètres]],\nIF($E$15=\"non\",IF(ROUND(Tableau152[[#This Row],[Quantités]]*Tableau152[[#This Row],[Montant adapté selon régime et paramètres]],2)>6000,6000,ROUND(Tableau152[[#This Row],[Quantités]]*Tableau152[[#This Row],[Montant adapté selon régime et paramètres]],2)),\nIF($E$15=\"oui\",ROUND(Tableau152[[#This Row],[Quantités]]*Tableau152[[#This Row],[Montant adapté selon régime et paramètres]],2),\"erreur\")))))","v":0},"R ≥ 1,5m²K/W\nVoir 22. dans circulaire des travaux pris en compte"]
[null,"07.02","Isolation d'un ballon de stockage pour l'eau chaude sanitaire > 500 litres",85,85,null,{"$f":"IF((Tableau152[[#This Row],[Montant de base primes avec audit travaux entrepreneur]]+Tableau152[[#This Row],[Montant de base primes sans audit \ntravaux par entrepreneur]]+Tableau152[[#This Row],[Montant de base primes sans audit \ntravaux par demandeur]])=0,\"\",IF(AND($E$15=\"oui\",$E$17=\"un entrepreneur\"),Tableau152[[#This Row],[Montant de base primes avec audit travaux entrepreneur]]*$H$11,IF(AND($E$15=\"non\",$E$17=\"un entrepreneur\"),Tableau152[[#This Row],[Montant de base primes sans audit \ntravaux par entrepreneur]]*$H$11,IF(AND($E$15=\"non\",$E$17=\"le demandeur\"),Tableau152[[#This Row],[Montant de base primes sans audit \ntravaux par demandeur]]*$H$11,IF(AND($E$15=\"oui\",$E$17=\"le demandeur\"),Tableau152[[#This Row],[Montant de base primes sans audit \ntravaux par demandeur]]*$H$11,\"erreur\")))))","v":170},{"$f":"IF(Tableau152[[#This Row],[unité]]=\"\",\"\",0)","v":0},"forfait",{"$f":"IF(Tableau152[[#This Row],[Quantités]]=0,0,IF(Tableau152[[#This Row],[Quantités]]=\"\",\"\",IF(Tableau152[[#This Row],[unité]]=\"forfait\",1*Tableau152[[#This Row],[Montant adapté selon régime et paramètres]],\nIF($E$15=\"non\",IF(ROUND(Tableau152[[#This Row],[Quantités]]*Tableau152[[#This Row],[Montant adapté selon régime et paramètres]],2)>6000,6000,ROUND(Tableau152[[#This Row],[Quantités]]*Tableau152[[#This Row],[Montant adapté selon régime et paramètres]],2)),\nIF($E$15=\"oui\",ROUND(Tableau152[[#This Row],[Quantités]]*Tableau152[[#This Row],[Montant adapté selon régime et paramètres]],2),\"erreur\")))))","v":0},"R ≥ 1,5m²K/W\nVoir 22. dans circulaire des travaux pris en compte"]
[null,"07.03","Nouveau ballon d'eau chaude sanitaire < 500 litres",120,120,null,{"$f":"IF((Tableau152[[#This Row],[Montant de base primes avec audit travaux entrepreneur]]+Tableau152[[#This Row],[Montant de base primes sans audit \ntravaux par entrepreneur]]+Tableau152[[#This Row],[Montant de base primes sans audit \ntravaux par demandeur]])=0,\"\",IF(AND($E$15=\"oui\",$E$17=\"un entrepreneur\"),Tableau152[[#This Row],[Montant de base primes avec audit travaux entrepreneur]]*$H$11,IF(AND($E$15=\"non\",$E$17=\"un entrepreneur\"),Tableau152[[#This Row],[Montant de base primes sans audit \ntravaux par entrepreneur]]*$H$11,IF(AND($E$15=\"non\",$E$17=\"le demandeur\"),Tableau152[[#This Row],[Montant de base primes sans audit \ntravaux par demandeur]]*$H$11,IF(AND($E$15=\"oui\",$E$17=\"le demandeur\"),Tableau152[[#This Row],[Montant de base primes sans audit \ntravaux par demandeur]]*$H$11,\"erreur\")))))","v":240},{"$f":"IF(Tableau152[[#This Row],[unité]]=\"\",\"\",0)","v":0},"forfait",{"$f":"IF(Tableau152[[#This Row],[Quantités]]=0,0,IF(Tableau152[[#This Row],[Quantités]]=\"\",\"\",IF(Tableau152[[#This Row],[unité]]=\"forfait\",1*Tableau152[[#This Row],[Montant adapté selon régime et paramètres]],\nIF($E$15=\"non\",IF(ROUND(Tableau152[[#This Row],[Quantités]]*Tableau152[[#This Row],[Montant adapté selon régime et paramètres]],2)>6000,6000,ROUND(Tableau152[[#This Row],[Quantités]]*Tableau152[[#This Row],[Montant adapté selon régime et paramètres]],2)),\nIF($E$15=\"oui\",ROUND(Tableau152[[#This Row],[Quantités]]*Tableau152[[#This Row],[Montant adapté selon régime et paramètres]],2),\"erreur\")))))","v":0},"les conditions techniques relatives aux travaux sont détaillées dans la notice « Critères techniques et pièces justificatives » (voir lien dans les sources des onglets relatifs aux procédures et détails)\n+ Apporter une preuve de variabilité\nVoir 19. dans circulaire des travaux pris en compte","l'entrepreneur doit disposer de l'accès à la profession pour les activités de type « Installation de chauffage, de climatisation, de sanitaire et du gaz » et dans certain cas de type « Électrotechnique »"]
[null,"07.04","Nouveau ballon d'eau chaude sanitaire > 500 litres",180,180,null,{"$f":"IF((Tableau152[[#This Row],[Montant de base primes avec audit travaux entrepreneur]]+Tableau152[[#This Row],[Montant de base primes sans audit \ntravaux par entrepreneur]]+Tableau152[[#This Row],[Montant de base primes sans audit \ntravaux par demandeur]])=0,\"\",IF(AND($E$15=\"oui\",$E$17=\"un entrepreneur\"),Tableau152[[#This Row],[Montant de base primes avec audit travaux entrepreneur]]*$H$11,IF(AND($E$15=\"non\",$E$17=\"un entrepreneur\"),Tableau152[[#This Row],[Montant de base primes sans audit \ntravaux par entrepreneur]]*$H$11,IF(AND($E$15=\"non\",$E$17=\"le demandeur\"),Tableau152[[#This Row],[Montant de base primes sans audit \ntravaux par demandeur]]*$H$11,IF(AND($E$15=\"oui\",$E$17=\"le demandeur\"),Tableau152[[#This Row],[Montant de base primes sans audit \ntravaux par demandeur]]*$H$11,\"erreur\")))))","v":360},{"$f":"IF(Tableau152[[#This Row],[unité]]=\"\",\"\",0)","v":0},"forfait",{"$f":"IF(Tableau152[[#This Row],[Quantités]]=0,0,IF(Tableau152[[#This Row],[Quantités]]=\"\",\"\",IF(Tableau152[[#This Row],[unité]]=\"forfait\",1*Tableau152[[#This Row],[Montant adapté selon régime et paramètres]],\nIF($E$15=\"non\",IF(ROUND(Tableau152[[#This Row],[Quantités]]*Tableau152[[#This Row],[Montant adapté selon régime et paramètres]],2)>6000,6000,ROUND(Tableau152[[#This Row],[Quantités]]*Tableau152[[#This Row],[Montant adapté selon régime et paramètres]],2)),\nIF($E$15=\"oui\",ROUND(Tableau152[[#This Row],[Quantités]]*Tableau152[[#This Row],[Montant adapté selon régime et paramètres]],2),\"erreur\")))))","v":0},"les conditions techniques relatives aux travaux sont détaillées dans la notice « Critères techniques et pièces justificatives » (voir lien dans les sources des onglets relatifs aux procédures et détails)\n+ Apporter une preuve de variabilité\nVoir 19. dans circulaire des travaux pris en compte","l'entrepreneur doit disposer de l'accès à la profession pour les activités de type « Installation de chauffage, de climatisation, de sanitaire et du gaz » et dans certain cas de type « Électrotechnique »"]
[null,"07.05","Isolation des conduites, gaines, vannes et accessoires d'une boucle de circulation d'eau chaude sanitaire",50,50,null,{"$f":"IF((Tableau152[[#This Row],[Montant de base primes avec audit travaux entrepreneur]]+Tableau152[[#This Row],[Montant de base primes sans audit \ntravaux par entrepreneur]]+Tableau152[[#This Row],[Montant de base primes sans audit \ntravaux par demandeur]])=0,\"\",IF(AND($E$15=\"oui\",$E$17=\"un entrepreneur\"),Tableau152[[#This Row],[Montant de base primes avec audit travaux entrepreneur]]*$H$11,IF(AND($E$15=\"non\",$E$17=\"un entrepreneur\"),Tableau152[[#This Row],[Montant de base primes sans audit \ntravaux par entrepreneur]]*$H$11,IF(AND($E$15=\"non\",$E$17=\"le demandeur\"),Tableau152[[#This Row],[Montant de base primes sans audit \ntravaux par demandeur]]*$H$11,IF(AND($E$15=\"oui\",$E$17=\"le demandeur\"),Tableau152[[#This Row],[Montant de base primes sans audit \ntravaux par demandeur]]*$H$11,\"erreur\")))))","v":100},{"$f":"IF(Tableau152[[#This Row],[unité]]=\"\",\"\",0)","v":0},"forfait",{"$f":"IF(Tableau152[[#This Row],[Quantités]]=0,0,IF(Tableau152[[#This Row],[Quantités]]=\"\",\"\",IF(Tableau152[[#This Row],[unité]]=\"forfait\",1*Tableau152[[#This Row],[Montant adapté selon régime et paramètres]],\nIF($E$15=\"non\",IF(ROUND(Tableau152[[#This Row],[Quantités]]*Tableau152[[#This Row],[Montant adapté selon régime et paramètres]],2)>6000,6000,ROUND(Tableau152[[#This Row],[Quantités]]*Tableau152[[#This Row],[Montant adapté selon régime et paramètres]],2)),\nIF($E$15=\"oui\",ROUND(Tableau152[[#This Row],[Quantités]]*Tableau152[[#This Row],[Montant adapté selon régime et paramètres]],2),\"erreur\")))))","v":0},"Respect exigences d’isolation + Copie du rapport du chauffagiste - www.energie.wallonie.be\nVoir 20. dans circulaire des travaux pris en compte"]
[null,"07.06","Isolation échangeur externe",85,85,null,{"$f":"IF((Tableau152[[#This Row],[Montant de base primes avec audit travaux entrepreneur]]+Tableau152[[#This Row],[Montant de base primes sans audit \ntravaux par entrepreneur]]+Tableau152[[#This Row],[Montant de base primes sans audit \ntravaux par demandeur]])=0,\"\",IF(AND($E$15=\"oui\",$E$17=\"un entrepreneur\"),Tableau152[[#This Row],[Montant de base primes avec audit travaux entrepreneur]]*$H$11,IF(AND($E$15=\"non\",$E$17=\"un entrepreneur\"),Tableau152[[#This Row],[Montant de base primes sans audit \ntravaux par entrepreneur]]*$H$11,IF(AND($E$15=\"non\",$E$17=\"le demandeur\"),Tableau152[[#This Row],[Montant de base primes sans audit \ntravaux par demandeur]]*$H$11,IF(AND($E$15=\"oui\",$E$17=\"le demandeur\"),Tableau152[[#This Row],[Montant de base primes sans audit \ntravaux par demandeur]]*$H$11,\"erreur\")))))","v":170},{"$f":"IF(Tableau152[[#This Row],[unité]]=\"\",\"\",0)","v":0},"forfait",{"$f":"IF(Tableau152[[#This Row],[Quantités]]=0,0,IF(Tableau152[[#This Row],[Quantités]]=\"\",\"\",IF(Tableau152[[#This Row],[unité]]=\"forfait\",1*Tableau152[[#This Row],[Montant adapté selon régime et paramètres]],\nIF($E$15=\"non\",IF(ROUND(Tableau152[[#This Row],[Quantités]]*Tableau152[[#This Row],[Montant adapté selon régime et paramètres]],2)>6000,6000,ROUND(Tableau152[[#This Row],[Quantités]]*Tableau152[[#This Row],[Montant adapté selon régime et paramètres]],2)),\nIF($E$15=\"oui\",ROUND(Tableau152[[#This Row],[Quantités]]*Tableau152[[#This Row],[Montant adapté selon régime et paramètres]],2),\"erreur\")))))","v":0},"R ≥ 1,5m²K/W\nVoir 21. dans circulaire des travaux pris en compte"]
[null,"08","VENTILATION",null,null,null,{"$f":"IF((Tableau152[[#This Row],[Montant de base primes avec audit travaux entrepreneur]]+Tableau152[[#This Row],[Montant de base primes sans audit \ntravaux par entrepreneur]]+Tableau152[[#This Row],[Montant de base primes sans audit \ntravaux par demandeur]])=0,\"\",IF(AND($E$15=\"oui\",$E$17=\"un entrepreneur\"),Tableau152[[#This Row],[Montant de base primes avec audit travaux entrepreneur]]*$H$11,IF(AND($E$15=\"non\",$E$17=\"un entrepreneur\"),Tableau152[[#This Row],[Montant de base primes sans audit \ntravaux par entrepreneur]]*$H$11,IF(AND($E$15=\"non\",$E$17=\"le demandeur\"),Tableau152[[#This Row],[Montant de base primes sans audit \ntravaux par demandeur]]*$H$11,IF(AND($E$15=\"oui\",$E$17=\"le demandeur\"),Tableau152[[#This Row],[Montant de base primes sans audit \ntravaux par demandeur]]*$H$11,\"erreur\")))))","v":""},{"$f":"IF(Tableau152[[#This Row],[unité]]=\"\",\"\",0)","v":""},null,{"$f":"SUM(J72:J75)","v":0}]
[null,"08.01","Installation VMC centralisée - simple flux",700,700,null,{"$f":"IF((Tableau152[[#This Row],[Montant de base primes avec audit travaux entrepreneur]]+Tableau152[[#This Row],[Montant de base primes sans audit \ntravaux par entrepreneur]]+Tableau152[[#This Row],[Montant de base primes sans audit \ntravaux par demandeur]])=0,\"\",IF(AND($E$15=\"oui\",$E$17=\"un entrepreneur\"),Tableau152[[#This Row],[Montant de base primes avec audit travaux entrepreneur]]*$H$11,IF(AND($E$15=\"non\",$E$17=\"un entrepreneur\"),Tableau152[[#This Row],[Montant de base primes sans audit \ntravaux par entrepreneur]]*$H$11,IF(AND($E$15=\"non\",$E$17=\"le demandeur\"),Tableau152[[#This Row],[Montant de base primes sans audit \ntravaux par demandeur]]*$H$11,IF(AND($E$15=\"oui\",$E$17=\"le demandeur\"),Tableau152[[#This Row],[Montant de base primes sans audit \ntravaux par demandeur]]*$H$11,\"erreur\")))))","v":1400},{"$f":"IF(Tableau152[[#This Row],[unité]]=\"\",\"\",0)","v":0},"forfait",{"$f":"IF(Tableau152[[#This Row],[Quantités]]=0,0,IF(Tableau152[[#This Row],[Quantités]]=\"\",\"\",IF(Tableau152[[#This Row],[unité]]=\"forfait\",1*Tableau152[[#This Row],[Montant adapté selon régime et paramètres]],\nIF($E$15=\"non\",IF(ROUND(Tableau152[[#This Row],[Quantités]]*Tableau152[[#This Row],[Montant adapté selon régime et paramètres]],2)>6000,6000,ROUND(Tableau152[[#This Row],[Quantités]]*Tableau152[[#This Row],[Montant adapté selon régime et paramètres]],2)),\nIF($E$15=\"oui\",ROUND(Tableau152[[#This Row],[Quantités]]*Tableau152[[#This Row],[Montant adapté selon régime et paramètres]],2),\"erreur\")))))","v":0},"les conditions techniques relatives aux travaux sont détaillées dans la notice « Critères techniques et pièces justificatives » (voir lien dans les sources des onglets relatifs aux procédures et détails)\nVoir 11.A. dans circulaire des travaux pris en compte"]
[null,"08.02","Installation VMC partielle - simple flux",200,200,null,{"$f":"IF((Tableau152[[#This Row],[Montant de base primes avec audit travaux entrepreneur]]+Tableau152[[#This Row],[Montant de base primes sans audit \ntravaux par entrepreneur]]+Tableau152[[#This Row],[Montant de base primes sans audit \ntravaux par demandeur]])=0,\"\",IF(AND($E$15=\"oui\",$E$17=\"un entrepreneur\"),Tableau152[[#This Row],[Montant de base primes avec audit travaux entrepreneur]]*$H$11,IF(AND($E$15=\"non\",$E$17=\"un entrepreneur\"),Tableau152[[#This Row],[Montant de base primes sans audit \ntravaux par entrepreneur]]*$H$11,IF(AND($E$15=\"non\",$E$17=\"le demandeur\"),Tableau152[[#This Row],[Montant de base primes sans audit \ntravaux par demandeur]]*$H$11,IF(AND($E$15=\"oui\",$E$17=\"le demandeur\"),Tableau152[[#This Row],[Montant de base primes sans audit \ntravaux par demandeur]]*$H$11,\"erreur\")))))","v":400},{"$f":"IF(Tableau152[[#This Row],[unité]]=\"\",\"\",0)","v":0},"forfait",{"$f":"IF(Tableau152[[#This Row],[Quantités]]=0,0,IF(Tableau152[[#This Row],[Quantités]]=\"\",\"\",IF(Tableau152[[#This Row],[unité]]=\"forfait\",1*Tableau152[[#This Row],[Montant adapté selon régime et paramètres]],\nIF($E$15=\"non\",IF(ROUND(Tableau152[[#This Row],[Quantités]]*Tableau152[[#This Row],[Montant adapté selon régime et paramètres]],2)>6000,6000,ROUND(Tableau152[[#This Row],[Quantités]]*Tableau152[[#This Row],[Montant adapté selon régime et paramètres]],2)),\nIF($E$15=\"oui\",ROUND(Tableau152[[#This Row],[Quantités]]*Tableau152[[#This Row],[Montant adapté selon régime et paramètres]],2),\"erreur\")))))","v":0},"les conditions techniques relatives aux travaux sont détaillées dans la notice « Critères techniques et pièces justificatives » (voir lien dans les sources des onglets relatifs aux procédures et détails)\nVoir 11.C. dans circulaire des travaux pris en compte"]
[null,"08.03","Installation VMC centralisée - double flux (avec récupération de chaleur)",1700,null,null,{"$f":"IF((Tableau152[[#This Row],[Montant de base primes avec audit travaux entrepreneur]]+Tableau152[[#This Row],[Montant de base primes sans audit \ntravaux par entrepreneur]]+Tableau152[[#This Row],[Montant de base primes sans audit \ntravaux par demandeur]])=0,\"\",IF(AND($E$15=\"oui\",$E$17=\"un entrepreneur\"),Tableau152[[#This Row],[Montant de base primes avec audit travaux entrepreneur]]*$H$11,IF(AND($E$15=\"non\",$E$17=\"un entrepreneur\"),Tableau152[[#This Row],[Montant de base primes sans audit \ntravaux par entrepreneur]]*$H$11,IF(AND($E$15=\"non\",$E$17=\"le demandeur\"),Tableau152[[#This Row],[Montant de base primes sans audit \ntravaux par demandeur]]*$H$11,IF(AND($E$15=\"oui\",$E$17=\"le demandeur\"),Tableau152[[#This Row],[Montant de base primes sans audit \ntravaux par demandeur]]*$H$11,\"erreur\")))))","v":3400},{"$f":"IF(Tableau152[[#This Row],[unité]]=\"\",\"\",0)","v":0},"forfait",{"$f":"IF(Tableau152[[#This Row],[Quantités]]=0,0,IF(Tableau152[[#This Row],[Quantités]]=\"\",\"\",IF(Tableau152[[#This Row],[unité]]=\"forfait\",1*Tableau152[[#This Row],[Montant adapté selon régime et paramètres]],\nIF($E$15=\"non\",IF(ROUND(Tableau152[[#This Row],[Quantités]]*Tableau152[[#This Row],[Montant adapté selon régime et paramètres]],2)>6000,6000,ROUND(Tableau152[[#This Row],[Quantités]]*Tableau152[[#This Row],[Montant adapté selon régime et paramètres]],2)),\nIF($E$15=\"oui\",ROUND(Tableau152[[#This Row],[Quantités]]*Tableau152[[#This Row],[Montant adapté selon régime et paramètres]],2),\"erreur\")))))","v":0},"les conditions techniques relatives aux travaux sont détaillées dans la notice « Critères techniques et pièces justificatives » (voir lien dans les sources des onglets relatifs aux procédures et détails)\nVoir 11.B. dans circulaire des travaux pris en compte"]
[null,"08.04","Installation VMC partielle - double flux",400,400,null,{"$f":"IF((Tableau152[[#This Row],[Montant de base primes avec audit travaux entrepreneur]]+Tableau152[[#This Row],[Montant de base primes sans audit \ntravaux par entrepreneur]]+Tableau152[[#This Row],[Montant de base primes sans audit \ntravaux par demandeur]])=0,\"\",IF(AND($E$15=\"oui\",$E$17=\"un entrepreneur\"),Tableau152[[#This Row],[Montant de base primes avec audit travaux entrepreneur]]*$H$11,IF(AND($E$15=\"non\",$E$17=\"un entrepreneur\"),Tableau152[[#This Row],[Montant de base primes sans audit \ntravaux par entrepreneur]]*$H$11,IF(AND($E$15=\"non\",$E$17=\"le demandeur\"),Tableau152[[#This Row],[Montant de base primes sans audit \ntravaux par demandeur]]*$H$11,IF(AND($E$15=\"oui\",$E$17=\"le demandeur\"),Tableau152[[#This Row],[Montant de base primes sans audit \ntravaux par demandeur]]*$H$11,\"erreur\")))))","v":800},{"$f":"IF(Tableau152[[#This Row],[unité]]=\"\",\"\",0)","v":0},"forfait",{"$f":"IF(Tableau152[[#This Row],[Quantités]]=0,0,IF(Tableau152[[#This Row],[Quantités]]=\"\",\"\",IF(Tableau152[[#This Row],[unité]]=\"forfait\",1*Tableau152[[#This Row],[Montant adapté selon régime et paramètres]],\nIF($E$15=\"non\",IF(ROUND(Tableau152[[#This Row],[Quantités]]*Tableau152[[#This Row],[Montant adapté selon régime et paramètres]],2)>6000,6000,ROUND(Tableau152[[#This Row],[Quantités]]*Tableau152[[#This Row],[Montant adapté selon régime et paramètres]],2)),\nIF($E$15=\"oui\",ROUND(Tableau152[[#This Row],[Quantités]]*Tableau152[[#This Row],[Montant adapté selon régime et paramètres]],2),\"erreur\")))))","v":0},"les conditions techniques relatives aux travaux sont détaillées dans la notice « Critères techniques et pièces justificatives » (voir lien dans les sources des onglets relatifs aux procédures et détails)\nVoir 11.D. dans circulaire des travaux pris en compte"]
[null,"09","CONFORMITE - SECURITE",null,null,null,{"$f":"IF((Tableau152[[#This Row],[Montant de base primes avec audit travaux entrepreneur]]+Tableau152[[#This Row],[Montant de base primes sans audit \ntravaux par entrepreneur]]+Tableau152[[#This Row],[Montant de base primes sans audit \ntravaux par demandeur]])=0,\"\",IF(AND($E$15=\"oui\",$E$17=\"un entrepreneur\"),Tableau152[[#This Row],[Montant de base primes avec audit travaux entrepreneur]]*$H$11,IF(AND($E$15=\"non\",$E$17=\"un entrepreneur\"),Tableau152[[#This Row],[Montant de base primes sans audit \ntravaux par entrepreneur]]*$H$11,IF(AND($E$15=\"non\",$E$17=\"le demandeur\"),Tableau152[[#This Row],[Montant de base primes sans audit \ntravaux par demandeur]]*$H$11,IF(AND($E$15=\"oui\",$E$17=\"le demandeur\"),Tableau152[[#This Row],[Montant de base primes sans audit \ntravaux par demandeur]]*$H$11,\"erreur\")))))","v":""},{"$f":"IF(Tableau152[[#This Row],[unité]]=\"\",\"\",0)","v":""},null,{"$f":"SUM(J77:J78)","v":0}]
[null,"09.01","Mise en conformité de l'installation électrique",800,800,800,{"$f":"IF((Tableau152[[#This Row],[Montant de base primes avec audit travaux entrepreneur]]+Tableau152[[#This Row],[Montant de base primes sans audit \ntravaux par entrepreneur]]+Tableau152[[#This Row],[Montant de base primes sans audit \ntravaux par demandeur]])=0,\"\",IF(AND($E$15=\"oui\",$E$17=\"un entrepreneur\"),Tableau152[[#This Row],[Montant de base primes avec audit travaux entrepreneur]]*$H$11,IF(AND($E$15=\"non\",$E$17=\"un entrepreneur\"),Tableau152[[#This Row],[Montant de base primes sans audit \ntravaux par entrepreneur]]*$H$11,IF(AND($E$15=\"non\",$E$17=\"le demandeur\"),Tableau152[[#This Row],[Montant de base primes sans audit \ntravaux par demandeur]]*$H$11,IF(AND($E$15=\"oui\",$E$17=\"le demandeur\"),Tableau152[[#This Row],[Montant de base primes sans audit \ntravaux par demandeur]]*$H$11,\"erreur\")))))","v":1600},{"$f":"IF(Tableau152[[#This Row],[unité]]=\"\",\"\",0)","v":0},"forfait",{"$f":"IF(Tableau152[[#This Row],[Quantités]]=0,0,IF(Tableau152[[#This Row],[Quantités]]=\"\",\"\",IF(Tableau152[[#This Row],[unité]]=\"forfait\",1*Tableau152[[#This Row],[Montant adapté selon régime et paramètres]],\nIF($E$15=\"non\",IF(ROUND(Tableau152[[#This Row],[Quantités]]*Tableau152[[#This Row],[Montant adapté selon régime et paramètres]],2)>6000,6000,ROUND(Tableau152[[#This Row],[Quantités]]*Tableau152[[#This Row],[Montant adapté selon régime et paramètres]],2)),\nIF($E$15=\"oui\",ROUND(Tableau152[[#This Row],[Quantités]]*Tableau152[[#This Row],[Montant adapté selon régime et paramètres]],2),\"erreur\")))))","v":0},"Certificat de conformité par un organisme agréé APRES travaux réalisés sur l'installation électrique.\nVoir 5.A. dans circulaire des travaux pris en compte","l'entrepreneur doit disposer de l'accès à la profession pour les activités de type « Électrotechnique »"]
[null,"09.02","Mise en conformité de l'installation de gaz",350,350,350,{"$f":"IF((Tableau152[[#This Row],[Montant de base primes avec audit travaux entrepreneur]]+Tableau152[[#This Row],[Montant de base primes sans audit \ntravaux par entrepreneur]]+Tableau152[[#This Row],[Montant de base primes sans audit \ntravaux par demandeur]])=0,\"\",IF(AND($E$15=\"oui\",$E$17=\"un entrepreneur\"),Tableau152[[#This Row],[Montant de base primes avec audit travaux entrepreneur]]*$H$11,IF(AND($E$15=\"non\",$E$17=\"un entrepreneur\"),Tableau152[[#This Row],[Montant de base primes sans audit \ntravaux par entrepreneur]]*$H$11,IF(AND($E$15=\"non\",$E$17=\"le demandeur\"),Tableau152[[#This Row],[Montant de base primes sans audit \ntravaux par demandeur]]*$H$11,IF(AND($E$15=\"oui\",$E$17=\"le demandeur\"),Tableau152[[#This Row],[Montant de base primes sans audit \ntravaux par demandeur]]*$H$11,\"erreur\")))))","v":700},{"$f":"IF(Tableau152[[#This Row],[unité]]=\"\",\"\",0)","v":0},"forfait",{"$f":"IF(Tableau152[[#This Row],[Quantités]]=0,0,IF(Tableau152[[#This Row],[Quantités]]=\"\",\"\",IF(Tableau152[[#This Row],[unité]]=\"forfait\",1*Tableau152[[#This Row],[Montant adapté selon régime et paramètres]],\nIF($E$15=\"non\",IF(ROUND(Tableau152[[#This Row],[Quantités]]*Tableau152[[#This Row],[Montant adapté selon régime et paramètres]],2)>6000,6000,ROUND(Tableau152[[#This Row],[Quantités]]*Tableau152[[#This Row],[Montant adapté selon régime et paramètres]],2)),\nIF($E$15=\"oui\",ROUND(Tableau152[[#This Row],[Quantités]]*Tableau152[[#This Row],[Montant adapté selon régime et paramètres]],2),\"erreur\")))))","v":0},"Certificat de conformité par un organisme agréé ou par l'entrepreneur s'il dispose de l'habilitation gaz, label CERGA, si ce dernier a réalisé l'entièreté de l'installation APRES travaux réalisés sur l'installation gaz\nVoir 5.B. dans circulaire des travaux pris en compte","l'entrepreneur doit disposer de l'accès à la profession pour les activités de type « Installation de chauffage central, de climatisation, du gaz et du sanitaire »"]
[null,"10","SALUBRITE",null,null,null,{"$f":"IF((Tableau152[[#This Row],[Montant de base primes avec audit travaux entrepreneur]]+Tableau152[[#This Row],[Montant de base primes sans audit \ntravaux par entrepreneur]]+Tableau152[[#This Row],[Montant de base primes sans audit \ntravaux par demandeur]])=0,\"\",IF(AND($E$15=\"oui\",$E$17=\"un entrepreneur\"),Tableau152[[#This Row],[Montant de base primes avec audit travaux entrepreneur]]*$H$11,IF(AND($E$15=\"non\",$E$17=\"un entrepreneur\"),Tableau152[[#This Row],[Montant de base primes sans audit \ntravaux par entrepreneur]]*$H$11,IF(AND($E$15=\"non\",$E$17=\"le demandeur\"),Tableau152[[#This Row],[Montant de base primes sans audit \ntravaux par demandeur]]*$H$11,IF(AND($E$15=\"oui\",$E$17=\"le demandeur\"),Tableau152[[#This Row],[Montant de base primes sans audit \ntravaux par demandeur]]*$H$11,\"erreur\")))))","v":""},{"$f":"IF(Tableau152[[#This Row],[unité]]=\"\",\"\",0)","v":""},null,{"$f":"SUM(J80:J91)","v":0}]
[null,"10.01","Élimination de mérule ou autre champignon aux effets analogues (traitements préventifs nons compris)",350,350,350,{"$f":"IF((Tableau152[[#This Row],[Montant de base primes avec audit travaux entrepreneur]]+Tableau152[[#This Row],[Montant de base primes sans audit \ntravaux par entrepreneur]]+Tableau152[[#This Row],[Montant de base primes sans audit \ntravaux par demandeur]])=0,\"\",IF(AND($E$15=\"oui\",$E$17=\"un entrepreneur\"),Tableau152[[#This Row],[Montant de base primes avec audit travaux entrepreneur]]*$H$11,IF(AND($E$15=\"non\",$E$17=\"un entrepreneur\"),Tableau152[[#This Row],[Montant de base primes sans audit \ntravaux par entrepreneur]]*$H$11,IF(AND($E$15=\"non\",$E$17=\"le demandeur\"),Tableau152[[#This Row],[Montant de base primes sans audit \ntravaux par demandeur]]*$H$11,IF(AND($E$15=\"oui\",$E$17=\"le demandeur\"),Tableau152[[#This Row],[Montant de base primes sans audit \ntravaux par demandeur]]*$H$11,\"erreur\")))))","v":700},{"$f":"IF(Tableau152[[#This Row],[unité]]=\"\",\"\",0)","v":0},"forfait",{"$f":"IF(Tableau152[[#This Row],[Quantités]]=0,0,IF(Tableau152[[#This Row],[Quantités]]=\"\",\"\",IF(Tableau152[[#This Row],[unité]]=\"forfait\",1*Tableau152[[#This Row],[Montant adapté selon régime et paramètres]],\nIF($E$15=\"non\",IF(ROUND(Tableau152[[#This Row],[Quantités]]*Tableau152[[#This Row],[Montant adapté selon régime et paramètres]],2)>6000,6000,ROUND(Tableau152[[#This Row],[Quantités]]*Tableau152[[#This Row],[Montant adapté selon régime et paramètres]],2)),\nIF($E$15=\"oui\",ROUND(Tableau152[[#This Row],[Quantités]]*Tableau152[[#This Row],[Montant adapté selon régime et paramètres]],2),\"erreur\")))))","v":0},"visite préalable estimateur\nVoir 4.D. dans circulaire des travaux pris en compte","l'entrepreneur doit disposer de l'accès à la profession selon la nature des travaux réalisés"]
[null,"10.02","Travaux de traitement / élimination de radon",350,350,350,{"$f":"IF((Tableau152[[#This Row],[Montant de base primes avec audit travaux entrepreneur]]+Tableau152[[#This Row],[Montant de base primes sans audit \ntravaux par entrepreneur]]+Tableau152[[#This Row],[Montant de base primes sans audit \ntravaux par demandeur]])=0,\"\",IF(AND($E$15=\"oui\",$E$17=\"un entrepreneur\"),Tableau152[[#This Row],[Montant de base primes avec audit travaux entrepreneur]]*$H$11,IF(AND($E$15=\"non\",$E$17=\"un entrepreneur\"),Tableau152[[#This Row],[Montant de base primes sans audit \ntravaux par entrepreneur]]*$H$11,IF(AND($E$15=\"non\",$E$17=\"le demandeur\"),Tableau152[[#This Row],[Montant de base primes sans audit \ntravaux par demandeur]]*$H$11,IF(AND($E$15=\"oui\",$E$17=\"le demandeur\"),Tableau152[[#This Row],[Montant de base primes sans audit \ntravaux par demandeur]]*$H$11,\"erreur\")))))","v":700},{"$f":"IF(Tableau152[[#This Row],[unité]]=\"\",\"\",0)","v":0},"forfait",{"$f":"IF(Tableau152[[#This Row],[Quantités]]=0,0,IF(Tableau152[[#This Row],[Quantités]]=\"\",\"\",IF(Tableau152[[#This Row],[unité]]=\"forfait\",1*Tableau152[[#This Row],[Montant adapté selon régime et paramètres]],\nIF($E$15=\"non\",IF(ROUND(Tableau152[[#This Row],[Quantités]]*Tableau152[[#This Row],[Montant adapté selon régime et paramètres]],2)>6000,6000,ROUND(Tableau152[[#This Row],[Quantités]]*Tableau152[[#This Row],[Montant adapté selon régime et paramètres]],2)),\nIF($E$15=\"oui\",ROUND(Tableau152[[#This Row],[Quantités]]*Tableau152[[#This Row],[Montant adapté selon régime et paramètres]],2),\"erreur\")))))","v":0},"Voir 4.E. dans circulaire des travaux pris en compte","https://statics.teams.cdn.office.net/evergreen-assets/safelinks/1/atp-safelinks.html"]
[null,"10.03","Mise en conformité de l’éclairage naturel",350,350,350,{"$f":"IF((Tableau152[[#This Row],[Montant de base primes avec audit travaux entrepreneur]]+Tableau152[[#This Row],[Montant de base primes sans audit \ntravaux par entrepreneur]]+Tableau152[[#This Row],[Montant de base primes sans audit \ntravaux par demandeur]])=0,\"\",IF(AND($E$15=\"oui\",$E$17=\"un entrepreneur\"),Tableau152[[#This Row],[Montant de base primes avec audit travaux entrepreneur]]*$H$11,IF(AND($E$15=\"non\",$E$17=\"un entrepreneur\"),Tableau152[[#This Row],[Montant de base primes sans audit \ntravaux par entrepreneur]]*$H$11,IF(AND($E$15=\"non\",$E$17=\"le demandeur\"),Tableau152[[#This Row],[Montant de base primes sans audit \ntravaux par demandeur]]*$H$11,IF(AND($E$15=\"oui\",$E$17=\"le demandeur\"),Tableau152[[#This Row],[Montant de base primes sans audit \ntravaux par demandeur]]*$H$11,\"erreur\")))))","v":700},{"$f":"IF(Tableau152[[#This Row],[unité]]=\"\",\"\",0)","v":0},"forfait",{"$f":"IF(Tableau152[[#This Row],[Quantités]]=0,0,IF(Tableau152[[#This Row],[Quantités]]=\"\",\"\",IF(Tableau152[[#This Row],[unité]]=\"forfait\",1*Tableau152[[#This Row],[Montant adapté selon régime et paramètres]],\nIF($E$15=\"non\",IF(ROUND(Tableau152[[#This Row],[Quantités]]*Tableau152[[#This Row],[Montant adapté selon régime et paramètres]],2)>6000,6000,ROUND(Tableau152[[#This Row],[Quantités]]*Tableau152[[#This Row],[Montant adapté selon régime et paramètres]],2)),\nIF($E$15=\"oui\",ROUND(Tableau152[[#This Row],[Quantités]]*Tableau152[[#This Row],[Montant adapté selon régime et paramètres]],2),\"erreur\")))))","v":0},null,"(taille raisonnable → Salon  25m² : ~ 2m², Chambre 12m² : ~ 0.8m², ...)\n≥ 1/14 surface sol → fenêtres verticales\n≥ 1/16 surface sol → fenêtres de toit"]
[null,"10.04","Mise en conformité de la ventilation",350,350,350,{"$f":"IF((Tableau152[[#This Row],[Montant de base primes avec audit travaux entrepreneur]]+Tableau152[[#This Row],[Montant de base primes sans audit \ntravaux par entrepreneur]]+Tableau152[[#This Row],[Montant de base primes sans audit \ntravaux par demandeur]])=0,\"\",IF(AND($E$15=\"oui\",$E$17=\"un entrepreneur\"),Tableau152[[#This Row],[Montant de base primes avec audit travaux entrepreneur]]*$H$11,IF(AND($E$15=\"non\",$E$17=\"un entrepreneur\"),Tableau152[[#This Row],[Montant de base primes sans audit \ntravaux par entrepreneur]]*$H$11,IF(AND($E$15=\"non\",$E$17=\"le demandeur\"),Tableau152[[#This Row],[Montant de base primes sans audit \ntravaux par demandeur]]*$H$11,IF(AND($E$15=\"oui\",$E$17=\"le demandeur\"),Tableau152[[#This Row],[Montant de base primes sans audit \ntravaux par demandeur]]*$H$11,\"erreur\")))))","v":700},{"$f":"IF(Tableau152[[#This Row],[unité]]=\"\",\"\",0)","v":0},"forfait",{"$f":"IF(Tableau152[[#This Row],[Quantités]]=0,0,IF(Tableau152[[#This Row],[Quantités]]=\"\",\"\",IF(Tableau152[[#This Row],[unité]]=\"forfait\",1*Tableau152[[#This Row],[Montant adapté selon régime et paramètres]],\nIF($E$15=\"non\",IF(ROUND(Tableau152[[#This Row],[Quantités]]*Tableau152[[#This Row],[Montant adapté selon régime et paramètres]],2)>6000,6000,ROUND(Tableau152[[#This Row],[Quantités]]*Tableau152[[#This Row],[Montant adapté selon régime et paramètres]],2)),\nIF($E$15=\"oui\",ROUND(Tableau152[[#This Row],[Quantités]]*Tableau152[[#This Row],[Montant adapté selon régime et paramètres]],2),\"erreur\")))))","v":0}]
[null,"10.05","Mise en conformité de la hauteur sous plafond",350,350,350,{"$f":"IF((Tableau152[[#This Row],[Montant de base primes avec audit travaux entrepreneur]]+Tableau152[[#This Row],[Montant de base primes sans audit \ntravaux par entrepreneur]]+Tableau152[[#This Row],[Montant de base primes sans audit \ntravaux par demandeur]])=0,\"\",IF(AND($E$15=\"oui\",$E$17=\"un entrepreneur\"),Tableau152[[#This Row],[Montant de base primes avec audit travaux entrepreneur]]*$H$11,IF(AND($E$15=\"non\",$E$17=\"un entrepreneur\"),Tableau152[[#This Row],[Montant de base primes sans audit \ntravaux par entrepreneur]]*$H$11,IF(AND($E$15=\"non\",$E$17=\"le demandeur\"),Tableau152[[#This Row],[Montant de base primes sans audit \ntravaux par demandeur]]*$H$11,IF(AND($E$15=\"oui\",$E$17=\"le demandeur\"),Tableau152[[#This Row],[Montant de base primes sans audit \ntravaux par demandeur]]*$H$11,\"erreur\")))))","v":700},{"$f":"IF(Tableau152[[#This Row],[unité]]=\"\",\"\",0)","v":0},"forfait",{"$f":"IF(Tableau152[[#This Row],[Quantités]]=0,0,IF(Tableau152[[#This Row],[Quantités]]=\"\",\"\",IF(Tableau152[[#This Row],[unité]]=\"forfait\",1*Tableau152[[#This Row],[Montant adapté selon régime et paramètres]],\nIF($E$15=\"non\",IF(ROUND(Tableau152[[#This Row],[Quantités]]*Tableau152[[#This Row],[Montant adapté selon régime et paramètres]],2)>6000,6000,ROUND(Tableau152[[#This Row],[Quantités]]*Tableau152[[#This Row],[Montant adapté selon régime et paramètres]],2)),\nIF($E$15=\"oui\",ROUND(Tableau152[[#This Row],[Quantités]]*Tableau152[[#This Row],[Montant adapté selon régime et paramètres]],2),\"erreur\")))))","v":0},null,"Hauteurs sous plafond ≥ 2m ?"]
[null,"10.06","Remplacement d’un escalier intérieur",350,350,350,{"$f":"IF((Tableau152[[#This Row],[Montant de base primes avec audit travaux entrepreneur]]+Tableau152[[#This Row],[Montant de base primes sans audit \ntravaux par entrepreneur]]+Tableau152[[#This Row],[Montant de base primes sans audit \ntravaux par demandeur]])=0,\"\",IF(AND($E$15=\"oui\",$E$17=\"un entrepreneur\"),Tableau152[[#This Row],[Montant de base primes avec audit travaux entrepreneur]]*$H$11,IF(AND($E$15=\"non\",$E$17=\"un entrepreneur\"),Tableau152[[#This Row],[Montant de base primes sans audit \ntravaux par entrepreneur]]*$H$11,IF(AND($E$15=\"non\",$E$17=\"le demandeur\"),Tableau152[[#This Row],[Montant de base primes sans audit \ntravaux par demandeur]]*$H$11,IF(AND($E$15=\"oui\",$E$17=\"le demandeur\"),Tableau152[[#This Row],[Montant de base primes sans audit \ntravaux par demandeur]]*$H$11,\"erreur\")))))","v":700},{"$f":"IF(Tableau152[[#This Row],[unité]]=\"\",\"\",0)","v":0},"forfait",{"$f":"IF(Tableau152[[#This Row],[Quantités]]=0,0,IF(Tableau152[[#This Row],[Quantités]]=\"\",\"\",IF(Tableau152[[#This Row],[unité]]=\"forfait\",1*Tableau152[[#This Row],[Montant adapté selon régime et paramètres]],\nIF($E$15=\"non\",IF(ROUND(Tableau152[[#This Row],[Quantités]]*Tableau152[[#This Row],[Montant adapté selon régime et paramètres]],2)>6000,6000,ROUND(Tableau152[[#This Row],[Quantités]]*Tableau152[[#This Row],[Montant adapté selon régime et paramètres]],2)),\nIF($E$15=\"oui\",ROUND(Tableau152[[#This Row],[Quantités]]*Tableau152[[#This Row],[Montant adapté selon régime et paramètres]],2),\"erreur\")))))","v":0}]
[null,"10.07","Installation / mise en conformité d’une toilette",350,350,350,{"$f":"IF((Tableau152[[#This Row],[Montant de base primes avec audit travaux entrepreneur]]+Tableau152[[#This Row],[Montant de base primes sans audit \ntravaux par entrepreneur]]+Tableau152[[#This Row],[Montant de base primes sans audit \ntravaux par demandeur]])=0,\"\",IF(AND($E$15=\"oui\",$E$17=\"un entrepreneur\"),Tableau152[[#This Row],[Montant de base primes avec audit travaux entrepreneur]]*$H$11,IF(AND($E$15=\"non\",$E$17=\"un entrepreneur\"),Tableau152[[#This Row],[Montant de base primes sans audit \ntravaux par entrepreneur]]*$H$11,IF(AND($E$15=\"non\",$E$17=\"le demandeur\"),Tableau152[[#This Row],[Montant de base primes sans audit \ntravaux par demandeur]]*$H$11,IF(AND($E$15=\"oui\",$E$17=\"le demandeur\"),Tableau152[[#This Row],[Montant de base primes sans audit \ntravaux par demandeur]]*$H$11,\"erreur\")))))","v":700},{"$f":"IF(Tableau152[[#This Row],[unité]]=\"\",\"\",0)","v":0},"forfait",{"$f":"IF(Tableau152[[#This Row],[Quantités]]=0,0,IF(Tableau152[[#This Row],[Quantités]]=\"\",\"\",IF(Tableau152[[#This Row],[unité]]=\"forfait\",1*Tableau152[[#This Row],[Montant adapté selon régime et paramètres]],\nIF($E$15=\"non\",IF(ROUND(Tableau152[[#This Row],[Quantités]]*Tableau152[[#This Row],[Montant adapté selon régime et paramètres]],2)>6000,6000,ROUND(Tableau152[[#This Row],[Quantités]]*Tableau152[[#This Row],[Montant adapté selon régime et paramètres]],2)),\nIF($E$15=\"oui\",ROUND(Tableau152[[#This Row],[Quantités]]*Tableau152[[#This Row],[Montant adapté selon régime et paramètres]],2),\"erreur\")))))","v":0}]
[null,"10.08","Installation / mise en conformité d’un point d’eau potable sur un évier dans la cuisine",350,350,350,{"$f":"IF((Tableau152[[#This Row],[Montant de base primes avec audit travaux entrepreneur]]+Tableau152[[#This Row],[Montant de base primes sans audit \ntravaux par entrepreneur]]+Tableau152[[#This Row],[Montant de base primes sans audit \ntravaux par demandeur]])=0,\"\",IF(AND($E$15=\"oui\",$E$17=\"un entrepreneur\"),Tableau152[[#This Row],[Montant de base primes avec audit travaux entrepreneur]]*$H$11,IF(AND($E$15=\"non\",$E$17=\"un entrepreneur\"),Tableau152[[#This Row],[Montant de base primes sans audit \ntravaux par entrepreneur]]*$H$11,IF(AND($E$15=\"non\",$E$17=\"le demandeur\"),Tableau152[[#This Row],[Montant de base primes sans audit \ntravaux par demandeur]]*$H$11,IF(AND($E$15=\"oui\",$E$17=\"le demandeur\"),Tableau152[[#This Row],[Montant de base primes sans audit \ntravaux par demandeur]]*$H$11,\"erreur\")))))","v":700},{"$f":"IF(Tableau152[[#This Row],[unité]]=\"\",\"\",0)","v":0},"forfait",{"$f":"IF(Tableau152[[#This Row],[Quantités]]=0,0,IF(Tableau152[[#This Row],[Quantités]]=\"\",\"\",IF(Tableau152[[#This Row],[unité]]=\"forfait\",1*Tableau152[[#This Row],[Montant adapté selon régime et paramètres]],\nIF($E$15=\"non\",IF(ROUND(Tableau152[[#This Row],[Quantités]]*Tableau152[[#This Row],[Montant adapté selon régime et paramètres]],2)>6000,6000,ROUND(Tableau152[[#This Row],[Quantités]]*Tableau152[[#This Row],[Montant adapté selon régime et paramètres]],2)),\nIF($E$15=\"oui\",ROUND(Tableau152[[#This Row],[Quantités]]*Tableau152[[#This Row],[Montant adapté selon régime et paramètres]],2),\"erreur\")))))","v":0}]
[null,"10.09","Installation / mise en conformité d’une première salle d’eau",350,350,350,{"$f":"IF((Tableau152[[#This Row],[Montant de base primes avec audit travaux entrepreneur]]+Tableau152[[#This Row],[Montant de base primes sans audit \ntravaux par entrepreneur]]+Tableau152[[#This Row],[Montant de base primes sans audit \ntravaux par demandeur]])=0,\"\",IF(AND($E$15=\"oui\",$E$17=\"un entrepreneur\"),Tableau152[[#This Row],[Montant de base primes avec audit travaux entrepreneur]]*$H$11,IF(AND($E$15=\"non\",$E$17=\"un entrepreneur\"),Tableau152[[#This Row],[Montant de base primes sans audit \ntravaux par entrepreneur]]*$H$11,IF(AND($E$15=\"non\",$E$17=\"le demandeur\"),Tableau152[[#This Row],[Montant de base primes sans audit \ntravaux par demandeur]]*$H$11,IF(AND($E$15=\"oui\",$E$17=\"le demandeur\"),Tableau152[[#This Row],[Montant de base primes sans audit \ntravaux par demandeur]]*$H$11,\"erreur\")))))","v":700},{"$f":"IF(Tableau152[[#This Row],[unité]]=\"\",\"\",0)","v":0},"forfait",{"$f":"IF(Tableau152[[#This Row],[Quantités]]=0,0,IF(Tableau152[[#This Row],[Quantités]]=\"\",\"\",IF(Tableau152[[#This Row],[unité]]=\"forfait\",1*Tableau152[[#This Row],[Montant adapté selon régime et paramètres]],\nIF($E$15=\"non\",IF(ROUND(Tableau152[[#This Row],[Quantités]]*Tableau152[[#This Row],[Montant adapté selon régime et paramètres]],2)>6000,6000,ROUND(Tableau152[[#This Row],[Quantités]]*Tableau152[[#This Row],[Montant adapté selon régime et paramètres]],2)),\nIF($E$15=\"oui\",ROUND(Tableau152[[#This Row],[Quantités]]*Tableau152[[#This Row],[Montant adapté selon régime et paramètres]],2),\"erreur\")))))","v":0}]
[null,"10.10","Sécurisation de baies de fenêtres et de mezzanines",350,350,350,{"$f":"IF((Tableau152[[#This Row],[Montant de base primes avec audit travaux entrepreneur]]+Tableau152[[#This Row],[Montant de base primes sans audit \ntravaux par entrepreneur]]+Tableau152[[#This Row],[Montant de base primes sans audit \ntravaux par demandeur]])=0,\"\",IF(AND($E$15=\"oui\",$E$17=\"un entrepreneur\"),Tableau152[[#This Row],[Montant de base primes avec audit travaux entrepreneur]]*$H$11,IF(AND($E$15=\"non\",$E$17=\"un entrepreneur\"),Tableau152[[#This Row],[Montant de base primes sans audit \ntravaux par entrepreneur]]*$H$11,IF(AND($E$15=\"non\",$E$17=\"le demandeur\"),Tableau152[[#This Row],[Montant de base primes sans audit \ntravaux par demandeur]]*$H$11,IF(AND($E$15=\"oui\",$E$17=\"le demandeur\"),Tableau152[[#This Row],[Montant de base primes sans audit \ntravaux par demandeur]]*$H$11,\"erreur\")))))","v":700},{"$f":"IF(Tableau152[[#This Row],[unité]]=\"\",\"\",0)","v":0},"forfait",{"$f":"IF(Tableau152[[#This Row],[Quantités]]=0,0,IF(Tableau152[[#This Row],[Quantités]]=\"\",\"\",IF(Tableau152[[#This Row],[unité]]=\"forfait\",1*Tableau152[[#This Row],[Montant adapté selon régime et paramètres]],\nIF($E$15=\"non\",IF(ROUND(Tableau152[[#This Row],[Quantités]]*Tableau152[[#This Row],[Montant adapté selon régime et paramètres]],2)>6000,6000,ROUND(Tableau152[[#This Row],[Quantités]]*Tableau152[[#This Row],[Montant adapté selon régime et paramètres]],2)),\nIF($E$15=\"oui\",ROUND(Tableau152[[#This Row],[Quantités]]*Tableau152[[#This Row],[Montant adapté selon régime et paramètres]],2),\"erreur\")))))","v":0}]
[null,"10.11","Gainage de corps de cheminée, et/ou restauration, reconstruction ou démolition des souches existantes et/ou accessoires",350,350,350,{"$f":"IF((Tableau152[[#This Row],[Montant de base primes avec audit travaux entrepreneur]]+Tableau152[[#This Row],[Montant de base primes sans audit \ntravaux par entrepreneur]]+Tableau152[[#This Row],[Montant de base primes sans audit \ntravaux par demandeur]])=0,\"\",IF(AND($E$15=\"oui\",$E$17=\"un entrepreneur\"),Tableau152[[#This Row],[Montant de base primes avec audit travaux entrepreneur]]*$H$11,IF(AND($E$15=\"non\",$E$17=\"un entrepreneur\"),Tableau152[[#This Row],[Montant de base primes sans audit \ntravaux par entrepreneur]]*$H$11,IF(AND($E$15=\"non\",$E$17=\"le demandeur\"),Tableau152[[#This Row],[Montant de base primes sans audit \ntravaux par demandeur]]*$H$11,IF(AND($E$15=\"oui\",$E$17=\"le demandeur\"),Tableau152[[#This Row],[Montant de base primes sans audit \ntravaux par demandeur]]*$H$11,\"erreur\")))))","v":700},{"$f":"IF(Tableau152[[#This Row],[unité]]=\"\",\"\",0)","v":0},"forfait",{"$f":"IF(Tableau152[[#This Row],[Quantités]]=0,0,IF(Tableau152[[#This Row],[Quantités]]=\"\",\"\",IF(Tableau152[[#This Row],[unité]]=\"forfait\",1*Tableau152[[#This Row],[Montant adapté selon régime et paramètres]],\nIF($E$15=\"non\",IF(ROUND(Tableau152[[#This Row],[Quantités]]*Tableau152[[#This Row],[Montant adapté selon régime et paramètres]],2)>6000,6000,ROUND(Tableau152[[#This Row],[Quantités]]*Tableau152[[#This Row],[Montant adapté selon régime et paramètres]],2)),\nIF($E$15=\"oui\",ROUND(Tableau152[[#This Row],[Quantités]]*Tableau152[[#This Row],[Montant adapté selon régime et paramètres]],2),\"erreur\")))))","v":0}]
[null,"10.12","Installation d’un système d’égouttage des eaux usées",350,350,350,{"$f":"IF((Tableau152[[#This Row],[Montant de base primes avec audit travaux entrepreneur]]+Tableau152[[#This Row],[Montant de base primes sans audit \ntravaux par entrepreneur]]+Tableau152[[#This Row],[Montant de base primes sans audit \ntravaux par demandeur]])=0,\"\",IF(AND($E$15=\"oui\",$E$17=\"un entrepreneur\"),Tableau152[[#This Row],[Montant de base primes avec audit travaux entrepreneur]]*$H$11,IF(AND($E$15=\"non\",$E$17=\"un entrepreneur\"),Tableau152[[#This Row],[Montant de base primes sans audit \ntravaux par entrepreneur]]*$H$11,IF(AND($E$15=\"non\",$E$17=\"le demandeur\"),Tableau152[[#This Row],[Montant de base primes sans audit \ntravaux par demandeur]]*$H$11,IF(AND($E$15=\"oui\",$E$17=\"le demandeur\"),Tableau152[[#This Row],[Montant de base primes sans audit \ntravaux par demandeur]]*$H$11,\"erreur\")))))","v":700},{"$f":"IF(Tableau152[[#This Row],[unité]]=\"\",\"\",0)","v":0},"forfait",{"$f":"IF(Tableau152[[#This Row],[Quantités]]=0,0,IF(Tableau152[[#This Row],[Quantités]]=\"\",\"\",IF(Tableau152[[#This Row],[unité]]=\"forfait\",1*Tableau152[[#This Row],[Montant adapté selon régime et paramètres]],\nIF($E$15=\"non\",IF(ROUND(Tableau152[[#This Row],[Quantités]]*Tableau152[[#This Row],[Montant adapté selon régime et paramètres]],2)>6000,6000,ROUND(Tableau152[[#This Row],[Quantités]]*Tableau152[[#This Row],[Montant adapté selon régime et paramètres]],2)),\nIF($E$15=\"oui\",ROUND(Tableau152[[#This Row],[Quantités]]*Tableau152[[#This Row],[Montant adapté selon régime et paramètres]],2),\"erreur\")))))","v":0},null,"l'entrepreneur doit disposer de l'accès à la profession selon la nature des travaux réalisés.\nles critères sont définis dans l'arrêté du Gouvernement wallon du 30 août 2007 déterminant les critères minimaux de salubrité, les critères de surpeuplement."]
[null,"Total",null,null,null,null,null,null,null,{"$f":"J25+J27+J34+J40+J46+J48+J54+J64+J71+J76+J79","v":0}]

{"sheet":"Procédure + détails avec audit","index":1,"n_rows":63,"n_cols":3,"rows_kept":63,"cut":false,"hidden":false,"merged":[[13,1,13,2],[14,1,14,2],[15,1,15,2],[16,1,16,2],[2,1,2,2],[17,1,17,2],[18,1,18,2],[19,1,19,2],[20,1,20,2],[22,1,22,2],[40,1,40,2],[34,1,34,2],[23,1,23,2],[24,1,24,2],[25,1,25,2],[27,1,27,2],[26,1,26,2],[28,1,28,2],[29,1,29,2],[30,1,30,2],[31,1,31,2],[32,1,32,2],[33,1,33,2],[35,1,35,2],[36,1,36,2],[37,1,37,2],[38,1,38,2],[39,1,39,2],[58,1,58,2],[59,1,59,2],[41,1,41,2],[42,1,42,2],[43,1,43,2],[44,1,44,2],[51,1,51,2],[52,1,52,2],[53,1,53,2],[54,1,54,2],[57,1,57,2],[55,1,55,2],[56,1,56,2],[46,1,46,2],[100,1,100,2],[99,1,99,2],[47,1,47,2],[48,1,48,2],[49,1,49,2],[50,1,50,2],[63,1,63,2],[62,1,62,2],[60,1,60,2],[61,1,61,2]]}
[]
[]
[null,"Sources   →   Primes Habitation   →   avec audit"]
[null,"Portail Wallonie - SPW (formulaires de demandes et annexes techniques en bas de page)  →","https://energie.wallonie.be/fr/primes-habitation-a-partir-du-1er-juillet-2023.html?IDC=10441"]
[null,"Critères techniques et pièces justificatives  →","https://energie.wallonie.be/servlet/Repository/75370.pdf?ID=75370"]
[null,"Brochure  →","https://energie.wallonie.be/servlet/Repository/76517.pdf?ID=76517"]
[null,"Liste des isolants biosourcés éligibles aux primes  →","https://energie.wallonie.be/servlet/Repository/61079.pdf?ID=61079"]
[null,"Liste des PAC ECS (pompes à chaleur eau chaude sanitaire) éligibles aux primes  →","https://energie.wallonie.be/servlet/Repository/58630.pdf?ID=58630"]
[null,"Liste des PAC (pompes à chaleur) chauffage éligibles aux primes  →","https://energie.wallonie.be/servlet/Repository/58631.pdf?ID=58631"]
[null,"Liste des poêles biomasse éligibles aux primes  →","https://energie.wallonie.be/servlet/Repository/58359.pdf?ID=58359"]
[null,"Liste des chaudières biomasse éligibles aux primes  →","https://energie.wallonie.be/servlet/Repository/58007.pdf?ID=58007"]
[null,"Circulaire des travaux pris en compte pour l'octroi d'une prime  →","https://energie.wallonie.be/servlet/Repository/78156.pdf?ID=78156"]
[]
[null,"Points d'attention   →   Primes Habitation   →   avec audit"]
[null,"Le montant de la prime ne sera pas supérieur à 90% du montant TVAC des postes éligibles des factures, sauf dans le cas des travaux liés.\nLe montant de base de la prime peut être multiplié par 1, 2, 3, 4 ou 6 en fonction de vos revenus et de la composition de votre ménage (régime du ménage). "]
[null,"Si votre rapport d'audit recommande des travaux de salubrité et d'économie d'énergie sur une même paroi, la demande de primes peut être introduite uniquement lorsque l'ensemble de ces recommandations a été réalisé. Dans le cas de la réalisation de travaux liés, objet d'une seule demande de prime, le montant de la prime ne sera pas supérieur à 90% de la somme des montants TVAC des postes éligibles des factures relatives à ces travaux."]
[null,"Certaines communes accordent des primes communales supplémentaires si vous réalisez des travaux économiseurs d'énergie. \nN'hésitez pas à consulter le site internet de la commune où sont réalisés les travaux ou à contacter directement la commune concernée."]
[null,"Une fois que les travaux relatifs à une ou plusieurs recommandations listées dans le rapport d'audit sont terminés, vous pouvez solliciter les primes associées au moyen du formulaire de demande de prime « Travaux ». \nJoignez tous les documents nécessaires et les annexes techniques complétées par les entrepreneurs à votre formulaire."]
[null,"N'hésitez pas à demander l'avis de votre auditeur avant de réaliser des travaux non mentionnés dans votre rapport d'audit ou de les réaliser différemment, pour être certain que ceux-ci pourront faire l'objet d'une prime."]
[null,"Il y a deux types de primes :\n  -   la prime « audit Logement » liée à la visite de l'auditeur et la production de son rapport d'audit ;\n  -   les primes « Travaux » liées à la réalisation de vos travaux sur base des recommandations du rapport d'audit Logement."]
[null,"Pour bénéficier des primes Habitation 2023 :\n  -   la date de la facture, pour la prime « audit Logement », doit est postérieure au 1er juillet 2023 ;\n  -   la date de la facture de solde du dernier travail, pour la prime « Travaux », doit être postérieure au 1er juillet 2023. \n  -   Toutes les factures de solde des travaux doivent dater de maximum 2 ans avant la demande de prime « Travaux »."]
[]
[null,"Procédure   →   Primes Habitation   →   avec audit"]
[null,"1. Faire réaliser un Audit Logement par un auditeur"]
[null,"  -   Vous cherchez et trouvez un auditeur Logement agréé par la Wallonie."]
[null,"  -   L'auditeur visitera votre habitation et établira un rapport d'Audit Logement qu'il vous présentera lors d'une seconde visite."]
[null,"  -   Après avoir établi ensemble l'ordre des recommandations, l'auditeur remettra le rapport d'audit Logement signé. Il sera envoyé automatiquement à l'administration"]
[null,"  -   Vous avez dès lors 7 ans pour réaliser les travaux."]
[null,"2. Envoyer demande de prime \"Audit Logement\""]
[null,"  -   Dans les huit mois à dater de l'enregistrement du rapport d'audit (date mentionnée sur votre rapport), vous envoyez votre formulaire de demande de prime « Audit Logement » (disponible dans la section Formulaires) soit par voie postale soit via le formulaire électronique signé électroniquement (https://monespace.wallonie.be). "]
[null,"  -   Vous recevez un accusé de réception dans les 15 jours. (Ce formulaire ne doit être envoyé qu'une seule fois)"]
[null,"  -   Si votre dossier est complet et si l'administration a pu obtenir directement toutes les informations nécessaires, vous recevez automatiquement votre prime \"audit Logement\"."]
[null,"  -   Si votre dossier n'est pas complet ou que certaines informations n'étaient pas disponibles, vous avez 60 jours pour le compléter à partir de la demande de complément qui vous sera transmise par l'administration."]
[null,"3. Début travaux"]
[null,"  -   Dès l'enregistrement du rapport d'audit Logement, vous pouvez faire réaliser les travaux par votre/vos entrepreneur(s), disposant des accès à la profession nécessaires."]
[null,"  -   Prenez des photos avant, tout au long du chantier, et après les travaux ou demandez à votre entrepreneur de les faire. \nElles vous seront réclamées pour l'obtention des primes."]
[null,"  -   Vous demandez à l'entrepreneur ayant réalisé les travaux de compléter l'annexe technique relative aux travaux faisant l'objet d'une prime. "]
[null,"  -   Vous joignez les documents nécessaires demandés dans ces annexes techniques."]
[null,"4. Envoyer demande de prime \"Travaux\""]
[null,"  -   Pour obtenir les primes « Travaux », vous envoyez à l'administration le formulaire de demande de prime accompagné des annexes techniques et des documents nécessaires soit par voie postale (à l'adresse indiquée sur le formulaire) soit via le formulaire électronique signé électroniquement (https://monespace.wallonie.be). \nUne demande de prime « Travaux » peut concerner une ou plusieurs recommandations de l'audit Logement."]
[null,"  -   Vous recevez un accusé de réception dans les 15 jours."]
[null,"  -   Si votre dossier est complet et après analyse par l'administration, vous recevez votre prime \"Travaux\"."]
[null,"  -   Si votre dossier n'est pas complet ou que certaines informations n'étaient pas disponibles, vous avez 60 jours pour le compléter à partir de la demande de complément qui vous sera transmise par l'administration."]
[null,"  -   L'administration peut, dans un délai de cinq ans à compter de la réception du montant de la prime, contrôler l'authenticité des informations fournies. (Conservez)"]
[]
[]
[null,"Conditions d'éligibilité   →   Primes Habitation   →   avec audit"]
[null,"1. Conditions liées au demandeur"]
[null,"Être soit :\n     -  un citoyen agé de 18 ans au moins (ou reconnu comme mineur émancipé) titulaire d'un droit réel sur le logement (propriétaire total ou partiel, usufruitier, nu-propriétaire, …) \n     -  une association de copropriétaires."]
[null,"Si le logement est mis en location au moment de l'introduction de la demande ou dans les 24 mois qui suivent cette introduction, la personne qui sollicite la prime s'engage à remplir une des conditions suivantes :\n     -  mettre le logement à la disposition d'une Agence Immobilière Sociale (AIS), d'une Société de Logement de Service Public (SLSP), d'une Association de Promotion du Logement (APL) pendant une durée minimale de 9 ans\n     -  mettre le logement en location par un bail enregistré, dans le respect de la grille indicative des loyers (https://loyerswallonie.be/), pendant une durée minimale de 5 ans."]
[null,"Les conditions d'occupation ne s'appliquent pas aux associations de copropriétaires."]
[null,"2. Conditions liées au logement concerné par les travaux"]
[null,"     -  Logement situé en Région wallonne (hors communauté germanophone)"]
[null,"     -  Logement âgé d'au moins 15 ans à la date de la demande de prime"]
[null,"     -  Minimum 50% destiné à l'habitation"]
[null,"La personne qui sollicite la prime doit s'engager pendant un certain nombre d'années :\n     -  si la personne réside dans le logement, à l'occuper pendant 5 ans minimum après la date de l'accusé de réception de la première demande de prime « Travaux »\n     -  si la personne ne réside pas encore dans le logement, à occuper pendant 5 ans minimum après la date de la domiciliation au plus tard dans les 24 mois de la date de l'accusé de réception de la première demande de prime « Travaux »\n     -  à mettre le logement en location par un bail enregistré, dans le respect de la grille indicative des loyers (https://loyerswallonie.be/), pendant 5 ans minimum\n     -  à mettre le logement à disposition d'une Agence Immobilière Sociale (AIS) ou d'une société de logement de service public (SLSP) ou d'une Association de Promotion du Logement (APL) pendant 9 ans minimum\n     -  à mettre gratuitement et à titre de résidence principale, la totalité du logement à la disposition d'un parent ou allié jusqu'au 2ème degré inclusivement pendant 1 an minimum"]
[null,"Les conditions d'occupation ne s'appliquent pas aux associations de copropriétaires."]
[null,"3. Conditions générales liées aux travaux"]
[null,"Certains travaux peuvent être réalisés personnellement et d'autres doivent être réalisés par un entrepreneur inscrit auprès de la Banque Carrefour des Entreprises (+ accès à la profession pour travaux spécifiques).\nSi vous réalisez les travaux vous-même, vous ne pourrez pas bénéficier des primes Habitation 2023."]
[null,"Les travaux doivent être réalisés dans les 7 ans à partir de la date d'enregistrement du rapport d'audit."]
[null,"La demande de prime doit être introduite dans les 8 ans à partir de la date d'enregistrement du rapport d'audit."]
[null,"La date de la facture de solde du dernier travail doit être postérieure au 1er juillet 2023. "]
[null,"Toutes les factures de solde des travaux doivent dater de maximum 2 ans avant la demande de prime « Travaux »."]

{"sheet":"Procédure + détails sans audit","index":2,"n_rows":51,"n_cols":3,"rows_kept":51,"cut":false,"hidden":false,"merged":[[12,1,12,2],[13,1,13,2],[14,1,14,2],[15,1,15,2],[2,1,2,2],[10,1,10,2],[11,1,11,2],[26,1,26,2],[27,1,27,2],[19,1,19,2],[20,1,20,2],[21,1,21,2],[22,1,22,2],[23,1,23,2],[66,1,66,2],[67,1,67,2],[16,1,16,2],[17,1,17,2],[31,1,31,2],[34,1,34,2],[33,1,33,2],[28,1,28,2],[29,1,29,2],[30,1,30,2],[32,1,32,2],[36,1,36,2],[35,1,35,2],[24,1,24,2],[38,1,38,2],[25,1,25,2],[39,1,39,2],[40,1,40,2],[41,1,41,2],[42,1,42,2],[44,1,44,2],[43,1,43,2],[50,1,50,2],[45,1,45,2],[49,1,49,2],[46,1,46,2],[47,1,47,2],[48,1,48,2]]}
[]
[]
[null,"Sources   →   Primes Toitures et petits travaux   →   sans audit"]
[null,"Portail Wallonie - SPW (formulaires de demandes et annexes techniques en bas de page)  →","https://energie.wallonie.be/fr/prime-toiture-et-petits-travaux-sans-audit.html?IDC=10305#"]
[null,"Critères techniques et pièces justificatives  →","https://energie.wallonie.be/servlet/Repository/75531.pdf?ID=75531"]
[null,"Guide pratique  →","https://energie.wallonie.be/servlet/Repository/72865.pdf?ID=72865"]
[null,"Liste des isolants biosourcés éligibles aux primes  →","https://energie.wallonie.be/servlet/Repository/61079.pdf?ID=61079"]
[null,"Liste des PAC ECS (pompes à chaleur eau chaude sanitaire) éligibles aux primes  → ","https://energie.wallonie.be/servlet/Repository/58630.pdf?ID=58630"]
[null,"Circulaire des travaux pris en compte pour l'octroi d'une prime  →","https://energie.wallonie.be/servlet/Repository/78156.pdf?ID=78156"]
[]
[null,"Points d'attention   →   Primes Toitures et petits travaux   →   sans audit"]
[null,"Certains travaux requièrent une visite préalable d'un estimateur du SPW Logement. \nNe commencez pas vos travaux avant cette visite si celle-ci est requise (formulaire de demande de passage d'un estimateur disponible via le portail du SPW ci-dessus)."]
[null,"Vous pouvez réaliser certains travaux vous-même, d'autres doivent être réalisés par un entrepreneur inscrit auprès de la Banque-Carrefour des Entreprises, ayant les accès à la profession."]
[null,"Tous les 24 mois, vous pouvez solliciter une prime pour la réalisation de 5 travaux de rénovation et 5 travaux d'amélioration de la performance énergétique."]
[null,"Excepté pour les travaux relatifs à la toiture, le montant des factures des postes éligibles est obligatoirement supérieur à 200€ et inférieur ou égal à 6000€ TVAC.\nSi vous réalisez plusieurs travaux, ce plafond ne s'applique pas au total des factures des travaux mais bien pour chaque poste de travaux repris dans la liste expliquant le montant des primes.\nLe montant des primes ne sera pas supérieur à 90 % du montant des factures TVAC de chaque poste de travaux."]
[null,"Votre demande devra être introduite dans les 8 mois de votre facture de solde du dernier travail."]
[null,"Visite préalable d'un estimateur public obligatoire (SPW Logement) pour l'obtention des primes suivantes :"]
[null," - Remplacement de la couverture\n - Appropriation de la charpente\n - Remplacement des dispositifs d'évacuation des eaux pluviales\n - Infiltration (mur extérieur)\n - Humidité ascensionnelle (pied de mur)\n - Renforcement des murs instables\n - Remplacement des supports des aires de circulation (ex : gîtage, hourdis, dalle béton armé, etc.)\n - Travaux de nature à éliminer la mérule\n - Mise en conformité de l'éclairage naturel\n - Mise en conformité de la ventilation\n - Mise en conformité de la hauteur sous plafond\n - Remplacement pour mise en conformité d'un escalier intérieur\n - Installation/mise en conformité d'une toilette\n - Installation d'un premier point d'eau potable sur un évier dans la cuisine\n - Installation d'une première salle d'eau"]
[]
[null,"Procédure   →   Primes Toitures et petits travaux   →   sans audit"]
[null,"1. Visite préalable de l'estimateur du SPW Logement"]
[null,"pour certains travaux (voir la liste des travaux concernés dans la section Montant de la prime), la visite préalable de l'estimateur du SPW Logement est indispensable avant de les réaliser. "]
[null,"Le formulaire de demande de passage d'un estimateur est disponible dans la section Formulaires et peut être envoyé soit par courrier à l'adresse indiquée sur le formulaire soit à l'adresse mail suivante : "]
[null,"rehabilitation.log.dgo4@spw.wallonie.be"]
[null,"2. Début travaux"]
[null,"vous faites réaliser vos travaux par un entrepreneur inscrit à la banque carrefour des entreprises ou vous les réalisez vous-même vos travaux. "]
[null,"L'ensemble de vos factures doit être postérieur au 1er mai 2022."]
[null,"3. Introduction de la demande de primes"]
[null,"  -   Pour bénéficier des montants de primes en vigueur du 1er septembre 2022 au 1er juillet 2023, la demande de prime doit être introduite dans les 4 mois de la facture de solde du dernier travail."]
[null,"  -   Pour bénéficier des montants de primes en vigueur à partir du 1er juillet 2023, la demande de prime doit être introduite dans les 8 mois de la facture de solde du dernier travail."]
[null,"  -   Vous envoyez à l'administration le formulaire de demande de prime complété et signé, accompagné des annexes techniques et des documents nécessaires soit par voie postale soit via le formulaire électronique signé électroniquement. "]
[null,"4. Suivi"]
[null,"Une demande de prime peut concerner un ou plusieurs travaux. Si vous envoyez une demande pour plusieurs travaux, un seul formulaire suffit."]
[null,"  -   Vous recevez un accusé de réception dans les 15 jours."]
[null,"  -   Si votre dossier est complet et après analyse par l'administration, vous recevez votre prime."]
[null,"  -   Si votre dossier n'est pas complet ou que certaines informations n'étaient pas disponibles, vous avez 60 jours pour le compléter à partir de la demande de complément qui vous sera transmise par l'administration."]
[null,"  -   L'administration peut, dans un délai de cinq ans à compter de la réception du montant de la prime, contrôler l'authenticité des informations fournies. (Conservez)"]
[]
[null,"Conditions d'éligibilité   →   Primes Toitures et petits travaux   →   sans audit"]
[null,"1. Conditions liées au demandeur"]
[null,"Être soit :\n     -  un citoyen agé de 18 ans au moins (ou reconnu comme mineur émancipé) titulaire d'un droit réel sur le logement (propriétaire total ou partiel, usufruitier, nu-propriétaire, …) \n     -  une association de copropriétaires."]
[null,"Si le logement est mis en location au moment de l'introduction de la demande ou dans les 24 mois qui suivent cette introduction, la personne qui sollicite la prime s'engage à remplir une des conditions suivantes :\n     -  mettre le logement à la disposition d'une Agence Immobilière Sociale (AIS), d'une Société de Logement de Service Public (SLSP), d'une Association de Promotion du Logement (APL) pendant une durée minimale de 9 ans\n     -  mettre le logement en location par un bail enregistré, dans le respect de la grille indicative des loyers (https://loyerswallonie.be/), pendant une durée minimale de 5 ans."]
[null,"Les conditions d'occupation ne s'appliquent pas aux associations de copropriétaires."]
[null,"2. Conditions liées au logement concerné par les travaux"]
[null,"     -  Logement situé en Région wallonne (hors communauté germanophone)"]
[null,"     -  Logement âgé d'au moins 15 ans à la date de la demande de prime"]
[null,"     -  Minimum 50% destiné à l'habitation"]
[null,"3. Conditions générales liées aux travaux"]
[null,"Certains travaux peuvent être réalisés personnellement et d'autres doivent être réalisés par un entrepreneur inscrit auprès de la Banque Carrefour des Entreprises (+ accès à la profession pour travaux spécifiques)."]
[null,"Pour bénéficier des montants de primes en vigueur du 1er septembre 2022 au 1er juillet 2023 :\n     -  toutes les factures doivent être postérieures au 1er mai 2022,\n     -  les factures de solde de l'ensemble des travaux, objet de la demande de prime, doivent dater de maximum 2 ans,\n     -  l'ensemble des factures doit dater de maximum 2 ans par rapport à la date du rapport d'estimateur s'il est requis,\n     -  la demande de prime doit être introduite dans les 4 mois de la facture de solde du dernier travail."]
[null,"Pour bénéficier des montants de primes en vigueur à partir du 1er juillet 2023 :\n     -  toutes les factures doivent être postérieures au 1er mai 2022,\n     -  la dernière facture de solde doit être postérieure au 1er novembre 2022,\n     -  les factures de solde de l'ensemble des travaux, objet de la demande de prime, doivent dater de maximum 2 ans par rapport à la dernière facture de solde,\n     -  l'ensemble des factures doit dater de maximum 2 ans par rapport à la date du rapport d'estimateur s'il est requis,\n     -  la demande de prime doit être introduite dans les 8 mois de la facture de solde du dernier travail."]

{"sheet":"Informations supplémentaires","index":3,"n_rows":21,"n_cols":6,"rows_kept":21,"cut":false,"hidden":false,"merged":[[16,1,16,5],[17,1,17,5],[18,1,18,5],[19,1,19,5],[20,1,20,5],[15,1,15,5],[2,1,2,5],[3,2,3,3],[4,2,4,3],[5,2,5,3],[13,1,13,5],[8,1,12,1],[3,4,3,5],[4,4,4,5],[5,4,5,5]]}
[]
[]
[null,"Calculer l'épaisseur de chaque type d'isolant afin d'atteindre l'objectif d'obtention des primes"]
[null,null,"Valeur lambda de l'isolant  (λ)   →",null,0.04]
[null,null,"Résistance thermique à atteindre  (R)   →",null,5]
[null,null,"Epaisseur isolant minimum nécessaire  →",null,{"$f":"ROUND(E4*E5*100,1)","v":20}]
[]
[null,"Calcul du revenu de référence du ménage","Régime\n( R )","Revenu de référence du ménage\nà partir du 1er janvier 2023\nsupérieur ou égal à","Revenu de référence du ménage\nà partir du 1er janvier 2023\ninférieur ou égal à","Coefficient de majoration des primes de base"]
[null,"Somme des revenus imposables globaux du ménage ...\n\n          diminué de 5.000,00€ par enfant à charge (existant, à naître, orphelin ou en hébergement égalitaire)\n\n          diminué de 5.000,00€ par personne représentant un handicap et faisant partie du ménage\n\n          diminué de 5.000,00€ par parent-cohabitant de plus de 60 ans","R1",0,24600,6]
[null,null,"R2",24600.01,34900,4]
[null,null,"R3",34900.01,46200,3]
[null,null,"R4",46200.01,104400,2]
[null,null,"R5",104400.01,null,1]
[null,"Attention la majoration de la prime ne concerne pas les associations de copropriétaires. Ces dernières bénéficieront de la prime de base (catégorie de revenus R5)."]
[]
[null,"Taux de TVA réduit (6% au lieu de 21%) pour votre projet de rénovation ?"]
[null,"Habitation privée : \nle bâtiment concerné par les travaux doit être à usage privé, soit de manière exclusive, soit à titre principal. \nVotre logement ne doit pas être utilisé à plus de 30% à des fins professionnelles."]
[null,"Ancienneté : \nLe logement doit posséder au moins 10 ans d’ancienneté (depuis première date d’occupation du premier propiétaire)."]
[null,"Facturation : \nLes travaux concernés par le taux de TVA réduit doivent être facturés directement au « consommateur final », qu’il s’agisse du propriétaire, de l’usufruitier ou encore du locataire. "]
[null,"Qui fait les travaux :\nLe taux de TVA à 6% ne s’applique que pour de la main-d’œuvre et des fournitures issus d’un professionnel du secteur. \nSi vous souhaitez entreprendre les travaux vous-même, vous conserverez le taux habituel de 21%."]
[null,"Quid extension :\nSi vous souhaitez agrandir la superficie de votre maison en y ajoutant une annexe ou une extension, vous pourrez bénéficier d’une réduction du taux de TVA mais à l’unique condition que cette nouvelle partie de votre logement n’excède pas la moitié de la superficie totale de votre habitation une fois les travaux terminés.\nL’agrandissement doit être effectué en prenant appui sur la structure existante et former un tout avec le logement existant. \nUn garage peut donc parfaitement profiter d’une réduction du taux de TVA s’il est adossé à votre maison, mais pas s’il est construit dans le fond de votre jardin."]

{"sheet":"Building Blocks (BB)","index":4,"n_rows":14,"n_cols":58,"rows_kept":14,"cut":false,"hidden":true,"merged":[[1,46,1,57],[1,40,1,43],[1,44,1,45],[1,3,1,8],[1,9,1,13],[1,20,1,24],[1,25,1,33],[1,34,1,39],[1,14,1,18]]}
[]
[null,"Section →",{"$f":"'Guide & Calcul des primes'!$C$25","v":"AUDIT"},{"$f":"'Guide & Calcul des primes'!$C$27","v":"TOITURE"},null,null,null,null,null,{"$f":"'Guide & Calcul des primes'!$C$34","v":"MURS ET FACADES"},null,null,null,null,{"$f":"'Guide & Calcul des primes'!$C$40","v":"SOLS"},null,null,null,null,{"$f":"'Guide & Calcul des primes'!$C$46","v":"MENUISERIES EXTERIEURES"},{"$f":"'Guide & Calcul des primes'!C48","v":"PRODUCTION EAU CHAUDE"},null,null,null,null,{"$f":"'Guide & Calcul des primes'!C54","v":"CHAUFFAGE - production / distribution / stock"},null,null,null,null,null,null,null,null,{"$f":"'Guide & Calcul des primes'!$C$64","v":"SANITAIRE - production / distribution / stock"},null,null,null,null,null,{"$f":"'Guide & Calcul des primes'!$C$71","v":"VENTILATION"},null,null,null,{"$f":"'Guide & Calcul des primes'!$C$76","v":"CONFORMITE - SECURITE"},null,{"$f":"'Guide & Calcul des primes'!$C$79","v":"SALUBRITE"}]
[null,"Travaux prime →",{"$f":"'Guide & Calcul des primes'!C26","v":"Audit logement"},{"$f":"'Guide & Calcul des primes'!C28","v":"Isolation thermique toiture"},{"$f":"'Guide & Calcul des primes'!C29","v":"Isolation thermique toiture avec matériau biosourcé"},{"$f":"'Guide & Calcul des primes'!C30","v":"Remplacement de la couverture de toiture"},{"$f":"'Guide & Calcul des primes'!C31","v":"Appropriation de la charpente de toiture"},{"$f":"'Guide & Calcul des primes'!C32","v":"Remplacement de dispositifs d'eaux pluviales de toiture"},{"$f":"'Guide & Calcul des primes'!C33","v":"Isolation thermique de toiture - réduction fiscale"},{"$f":"'Guide & Calcul des primes'!C35","v":"Isolation thermique de murs"},{"$f":"'Guide & Calcul des primes'!C36","v":"Isolation avec matériau biosourcé de murs"},{"$f":"'Guide & Calcul des primes'!C37","v":"Assèchement de murs (extérieurs) - par infiltration"},{"$f":"'Guide & Calcul des primes'!C38","v":"Assèchement de murs - humidité ascensionnelle (pied de mur)"},{"$f":"'Guide & Calcul des primes'!C39","v":"Renforcement / reconstruction de murs instables"},{"$f":"'Guide & Calcul des primes'!C41","v":"Isolation thermique de sols"},{"$f":"'Guide & Calcul des primes'!C42","v":"Isolation avec matériau biosourcé de sols"},{"$f":"'Guide & Calcul des primes'!C43","v":"Remplacement de structure porteuse de plancher d'un ou plusieurs locaux"},{"$f":"'Guide & Calcul des primes'!C44","v":"Remplacement des finitions de planchers en cas d'isolation par le haut"},{"$f":"'Guide & Calcul des primes'!C45","v":"Renforcement/reconstruction de supports (gitage, hourdis, …) d'aires de circulation d'un ou plusieurs locaux"},{"$f":"'Guide & Calcul des primes'!C47","v":"Remplacement de menuiseries extérieures (ou vitrages)"},{"$f":"'Guide & Calcul des primes'!C49","v":"Pompe à chaleur - uniquement pour eau chaude sanitaire"},{"$f":"'Guide & Calcul des primes'!C50","v":"Pompe à chaleur - pour chauffage ou combinée"},{"$f":"'Guide & Calcul des primes'!C51","v":"Chaudière biomasse"},{"$f":"'Guide & Calcul des primes'!C52","v":"Poêle biomasse local"},{"$f":"'Guide & Calcul des primes'!C53","v":"Chauffe-eau solaire"},{"$f":"'Guide & Calcul des primes'!C55","v":"Isolation des conduites, gaines et vannes de chauffage hors du volume protégé (caves, garage, extérieur, …)"},{"$f":"'Guide & Calcul des primes'!C56","v":"Circulateurs à vitesse variable - jusqu'à 3 logements"},{"$f":"'Guide & Calcul des primes'!C57","v":"Circulateurs à vitesse variable - à partir de 4 logements"},{"$f":"'Guide & Calcul des primes'!C58","v":"Isolation du ballon de stockage de chauffage - ≤ 500 litres"},{"$f":"'Guide & Calcul des primes'!C59","v":"Isolation du ballon de stockage de chauffage - > 500 litres"},{"$f":"'Guide & Calcul des primes'!C60","v":"Remplacement du ballon de stockage de chauffage - ≤ 500 litres"},{"$f":"'Guide & Calcul des primes'!C61","v":"Remplacement du ballon de stockage de chauffage - > 500 litres"},{"$f":"'Guide & Calcul des primes'!C62","v":"Placement de vannes thermostatiques"},{"$f":"'Guide & Calcul des primes'!C63","v":"Placement d'un thermostat d'ambiance"},{"$f":"'Guide & Calcul des primes'!C65","v":"Isolation d'un ballon de stockage pour l'eau chaude sanitaire < 500 litres"},{"$f":"'Guide & Calcul des primes'!C66","v":"Isolation d'un ballon de stockage pour l'eau chaude sanitaire > 500 litres"},{"$f":"'Guide & Calcul des primes'!C67","v":"Nouveau ballon d'eau chaude sanitaire < 500 litres"},{"$f":"'Guide & Calcul des primes'!C68","v":"Nouveau ballon d'eau chaude sanitaire > 500 litres"},{"$f":"'Guide & Calcul des primes'!C69","v":"Isolation des conduites, gaines, vannes et accessoires d'une boucle de circulation d'eau chaude sanitaire"},{"$f":"'Guide & Calcul des primes'!C70","v":"Isolation échangeur externe"},{"$f":"'Guide & Calcul des primes'!C72","v":"Installation VMC centralisée - simple flux"},{"$f":"'Guide & Calcul des primes'!C73","v":"Installation VMC partielle - simple flux"},{"$f":"'Guide & Calcul des primes'!C74","v":"Installation VMC centralisée - double flux (avec récupération de chaleur)"},{"$f":"'Guide & Calcul des primes'!C75","v":"Installation VMC partielle - double flux"},{"$f":"'Guide & Calcul des primes'!C77","v":"Mise en conformité de l'installation électrique"},{"$f":"'Guide & Calcul des primes'!C78","v":"Mise en conformité de l'installation de gaz"},{"$f":"'Guide & Calcul des primes'!C80","v":"Élimination de mérule ou autre champignon aux effets analogues (traitements préventifs nons compris)"},{"$f":"'Guide & Calcul des primes'!C81","v":"Travaux de traitement / élimination de radon"},{"$f":"'Guide & Calcul des primes'!C82","v":"Mise en conformité de l’éclairage naturel"},{"$f":"'Guide & Calcul des primes'!C83","v":"Mise en conformité de la ventilation"},{"$f":"'Guide & Calcul des primes'!C84","v":"Mise en conformité de la hauteur sous plafond"},{"$f":"'Guide & Calcul des primes'!C85","v":"Remplacement d’un escalier intérieur"},{"$f":"'Guide & Calcul des primes'!C86","v":"Installation / mise en conformité d’une toilette"},{"$f":"'Guide & Calcul des primes'!C87","v":"Installation / mise en conformité d’un point d’eau potable sur un évier dans la cuisine"},{"$f":"'Guide & Calcul des primes'!C88","v":"Installation / mise en conformité d’une première salle d’eau"},{"$f":"'Guide & Calcul des primes'!C89","v":"Sécurisation de baies de fenêtres et de mezzanines"},{"$f":"'Guide & Calcul des primes'!C90","v":"Gainage de corps de cheminée, et/ou restauration, reconstruction ou démolition des souches existantes et/ou accessoires"},{"$f":"'Guide & Calcul des primes'!C91","v":"Installation d’un système d’égouttage des eaux usées"}]
[null,"Montant prime →",{"$f":"'Guide & Calcul des primes'!G26","v":380},{"$f":"'Guide & Calcul des primes'!G28","v":100},{"$f":"'Guide & Calcul des primes'!G29","v":130},{"$f":"'Guide & Calcul des primes'!G30","v":20},{"$f":"'Guide & Calcul des primes'!G31","v":500},{"$f":"'Guide & Calcul des primes'!G32","v":200},{"$f":"'Guide & Calcul des primes'!G33","v":""},{"$f":"'Guide & Calcul des primes'!G35","v":44},{"$f":"'Guide & Calcul des primes'!G36","v":60},{"$f":"'Guide & Calcul des primes'!G37","v":12},{"$f":"'Guide & Calcul des primes'!G38","v":16},{"$f":"'Guide & Calcul des primes'!G39","v":16},{"$f":"'Guide & Calcul des primes'!G41","v":30},{"$f":"'Guide & Calcul des primes'!G42","v":40},{"$f":"'Guide & Calcul des primes'!G43","v":10},{"$f":"'Guide & Calcul des primes'!G44","v":10},{"$f":"'Guide & Calcul des primes'!G45","v":700},{"$f":"'Guide & Calcul des primes'!G47","v":130},{"$f":"'Guide & Calcul des primes'!G49","v":1400},{"$f":"'Guide & Calcul des primes'!G50","v":3000},{"$f":"'Guide & Calcul des primes'!G51","v":3600},{"$f":"'Guide & Calcul des primes'!G52","v":800},{"$f":"'Guide & Calcul des primes'!G53","v":2100},{"$f":"'Guide & Calcul des primes'!G55","v":170},{"$f":"'Guide & Calcul des primes'!G56","v":70},{"$f":"'Guide & Calcul des primes'!G57","v":380},{"$f":"'Guide & Calcul des primes'!G58","v":100},{"$f":"'Guide & Calcul des primes'!G59","v":170},{"$f":"'Guide & Calcul des primes'!G60","v":200},{"$f":"'Guide & Calcul des primes'!G61","v":340},{"$f":"'Guide & Calcul des primes'!G62","v":20},{"$f":"'Guide & Calcul des primes'!G63","v":80},{"$f":"'Guide & Calcul des primes'!G65","v":100},{"$f":"'Guide & Calcul des primes'!G66","v":170},{"$f":"'Guide & Calcul des primes'!G67","v":240},{"$f":"'Guide & Calcul des primes'!G68","v":360},{"$f":"'Guide & Calcul des primes'!G69","v":100},{"$f":"'Guide & Calcul des primes'!G70","v":170},{"$f":"'Guide & Calcul des primes'!G72","v":1400},{"$f":"'Guide & Calcul des primes'!G73","v":400},{"$f":"'Guide & Calcul des primes'!G74","v":3400},{"$f":"'Guide & Calcul des primes'!G75","v":800},{"$f":"'Guide & Calcul des primes'!G77","v":1600},{"$f":"'Guide & Calcul des primes'!G78","v":700},{"$f":"'Guide & Calcul des primes'!G80","v":700},{"$f":"'Guide & Calcul des primes'!G81","v":700},{"$f":"'Guide & Calcul des primes'!G82","v":700},{"$f":"'Guide & Calcul des primes'!G83","v":700},{"$f":"'Guide & Calcul des primes'!G84","v":700},{"$f":"'Guide & Calcul des primes'!G85","v":700},{"$f":"'Guide & Calcul des primes'!G86","v":700},{"$f":"'Guide & Calcul des primes'!G87","v":700},{"$f":"'Guide & Calcul des primes'!G88","v":700},{"$f":"'Guide & Calcul des primes'!G89","v":700},{"$f":"'Guide & Calcul des primes'!G90","v":700},{"$f":"'Guide & Calcul des primes'!G91","v":700}]
[null,"Unité →",{"$f":"'Guide & Calcul des primes'!I26","v":"forfait"},{"$f":"'Guide & Calcul des primes'!I28","v":"m² toiture isolée"},{"$f":"'Guide & Calcul des primes'!I29","v":"m² toiture isolée"},{"$f":"'Guide & Calcul des primes'!I30","v":"m² toiture"},{"$f":"'Guide & Calcul des primes'!I31","v":"forfait"},{"$f":"'Guide & Calcul des primes'!I32","v":"forfait"},{"$f":"'Guide & Calcul des primes'!I33","v":0},{"$f":"'Guide & Calcul des primes'!I35","v":"m² mur isolé"},{"$f":"'Guide & Calcul des primes'!I36","v":"m² mur isolé"},{"$f":"'Guide & Calcul des primes'!I37","v":"m² mur asseché"},{"$f":"'Guide & Calcul des primes'!I38","v":"m mur"},{"$f":"'Guide & Calcul des primes'!I39","v":"m² mur instable"},{"$f":"'Guide & Calcul des primes'!I41","v":"m² sol isolé"},{"$f":"'Guide & Calcul des primes'!I42","v":"m² sol isolé"},{"$f":"'Guide & Calcul des primes'!I43","v":"m² sol"},{"$f":"'Guide & Calcul des primes'!I44","v":"m² sol isolé"},{"$f":"'Guide & Calcul des primes'!I45","v":"forfait"},{"$f":"'Guide & Calcul des primes'!I47","v":"m² châssis / vitrage"},{"$f":"'Guide & Calcul des primes'!I49","v":"forfait"},{"$f":"'Guide & Calcul des primes'!I50","v":"forfait"},{"$f":"'Guide & Calcul des primes'!I51","v":"forfait"},{"$f":"'Guide & Calcul des primes'!I52","v":"forfait"},{"$f":"'Guide & Calcul des primes'!I53","v":"forfait"},{"$f":"'Guide & Calcul des primes'!I55","v":"forfait"},{"$f":"'Guide & Calcul des primes'!I56","v":"circulateur"},{"$f":"'Guide & Calcul des primes'!I57","v":"circulateur"},{"$f":"'Guide & Calcul des primes'!I58","v":"forfait"},{"$f":"'Guide & Calcul des primes'!I59","v":"forfait"},{"$f":"'Guide & Calcul des primes'!I60","v":"forfait"},{"$f":"'Guide & Calcul des primes'!I61","v":"forfait"},{"$f":"'Guide & Calcul des primes'!I62","v":"vanne"},{"$f":"'Guide & Calcul des primes'!I63","v":"forfait"},{"$f":"'Guide & Calcul des primes'!I65","v":"forfait"},{"$f":"'Guide & Calcul des primes'!I66","v":"forfait"},{"$f":"'Guide & Calcul des primes'!I67","v":"forfait"},{"$f":"'Guide & Calcul des primes'!I68","v":"forfait"},{"$f":"'Guide & Calcul des primes'!I69","v":"forfait"},{"$f":"'Guide & Calcul des primes'!I70","v":"forfait"},{"$f":"'Guide & Calcul des primes'!I72","v":"forfait"},{"$f":"'Guide & Calcul des primes'!I73","v":"forfait"},{"$f":"'Guide & Calcul des primes'!I74","v":"forfait"},{"$f":"'Guide & Calcul des primes'!I75","v":"forfait"},{"$f":"'Guide & Calcul des primes'!I77","v":"forfait"},{"$f":"'Guide & Calcul des primes'!I78","v":"forfait"},{"$f":"'Guide & Calcul des primes'!I80","v":"forfait"},{"$f":"'Guide & Calcul des primes'!I81","v":"forfait"},{"$f":"'Guide & Calcul des primes'!I82","v":"forfait"},{"$f":"'Guide & Calcul des primes'!I83","v":"forfait"},{"$f":"'Guide & Calcul des primes'!I84","v":"forfait"},{"$f":"'Guide & Calcul des primes'!I85","v":"forfait"},{"$f":"'Guide & Calcul des primes'!I86","v":"forfait"},{"$f":"'Guide & Calcul des primes'!I87","v":"forfait"},{"$f":"'Guide & Calcul des primes'!I88","v":"forfait"},{"$f":"'Guide & Calcul des primes'!I89","v":"forfait"},{"$f":"'Guide & Calcul des primes'!I90","v":"forfait"},{"$f":"'Guide & Calcul des primes'!I91","v":"forfait"}]
[null,"Référence prime →","00.01","01.01","01.02","01.03","01.04","01.05","01.06","02.01","02.02","02.03","02.04","02.05","03.01","03.02","03.03","03.04","03.05","04.01","05.01","05.02","05.03","05.04","05.05","06.01","06.02","06.03","06.04","06.05","06.06","06.07","06.08","06.09","07.01","07.02","07.03","07.04","07.05","07.06","08.01","08.02","08.03","08.04","09.01","09.02","10.01","10.02","10.03","10.04","10.05","10.06","10.07","10.08","10.09","10.10","10.11","10.12"]
[null,null,"02.02","02.02","02.02","02.03","02.03","02.03","02.02",null,null,null,null,null,null,null,null,null,null,"06.02",null,null,null,null,null,null,null,null,null,null,null,null,null,null,null,null,null,null,null,null,null,null,"11.02","11.02","16.08"]
[null,null,"02.03","02.03","02.03",null,null,null,"02.03",null,null,null,null,null,null,null,null,null,null,"06.08"]
[null,null,"02.04","02.04","02.04",null,null,null,"02.04",null,null,null,null,null,null,null,null,null,null,"06.10"]
[null,null,"06.02"]
[null,null,"06.08"]
[null,null,"06.10"]
[null,null,"11.02"]
[null,null,"16.08"]